Cogmind - Beta 16 @@@ ROGUE MODE // 2025.11.19 @ 13:46:59 Player: Runia Result: Destroyed by P-80 Master with Gamma Rifle Performance ------------- Evolutions (8) 4000 Regions Visited (36) 7200 Robots Destroyed (269) 1345 Value Destroyed (7413) 7413 Prototype IDs (91) 1820 Alien Tech Used (4) 800 Bonus (7221) 7221 TOTAL SCORE: 29799 Bonus ------- High Alert Combat Kills 35 Follower Combat Kills 1406 Awakened Behemoth Slayer 1000 Network Hubs Disabled 400 Registered with UFD 300 Met Optimus in HQ 500 Met Imprinter 300 Met Zhirov 300 Found Hidden Lab 3000 Friendly Fire -20 Cogmind --------- Core Integrity 0/1450 Matter 250/300 Energy 100/100 System Corruption 16% Temperature Cool (0) Movement Core (50) Location -2/Protoforge Parts ------- > --- POWER (2) -------- (None) > --- PROPULSION (7) --- (None) > --- UTILITY (12) ----- Medium Storage Unit Advanced Weight Redist. System Advanced Signal Interpreter Graphene Brace > --- WEAPON (2) ------- (None) > --- INVENTORY (10) --- AEGIS Remote Shield Nova Cannon Core Cannon Guided Remote Datajack Core Stripper CR-A16's Behemoth Slayer Peak State ------------ > --- POWER ------------ Backup Power VII Light Particle Reactor > --- PROPULSION ------- Cooled Nuclear Pulse Thruster Cooled Nuclear Pulse Thruster Nuclear Pulse Array Cooled Field Propulsion Drive Field Propulsion Array > --- UTILITY ---------- Experimental Power Amplifier Medium Storage Unit Advanced Weight Redist. System Advanced Sensor Array Advanced Signal Interpreter Experimental Core Analyzer Advanced Transmission Jammer Advanced Cloaking Device Centrium Medium Armor Plating Graphene Brace Improved Hacking Suite Deep Network Scanner > --- WEAPON ----------- Molecular Scythe CR-A16's Behemoth Slayer > --- INVENTORY -------- ID Mask AEGIS Remote Shield Transdimensional Reconstructor HERF Cannon Nova Cannon Potential Cannon Gamma Bomb Array Guided Remote Datajack [Rating: 168] Favorites ----------- Power Light Ion Engine Engine Light Ion Engine Power Core Backup Power VII Reactor Light Antimatter Reactor Propulsion Light Treads Treads Light Treads Leg Aluminum Leg Wheel Wheel Hover Unit Improved Antigrav System Flight Unit Improved Flight Unit Utility Medium Storage Unit Device Advanced Sensor Array Storage Medium Storage Unit Processor Advanced Signal Interpreter Hackware Improved Hacking Suite Protection Light Regenerative Plating Weapon Beam Cannon Energy Gun Medium Laser Energy Cannon Beam Cannon Ballistic Gun Enhanced Autogun Launcher Heavy Rocket Launcher Special Weapon Remote Datajack Impact Weapon Shock Maul Slashing Weapon Molecular Scythe Piercing Weapon CR-A16's Behemoth Slayer Build | -11 -10 -9 -9 -9 -8 -8 -8 -8 -8 -6 -6 -6 -6 -6 -6 -5 -5 -5 -5 -5 -5 -5 -4 -4 -4 -4 -4 -4 -4 -4 -3 -3 -3 -2 -2 -2 ------- Run | Yrd Mat Mat Min Exi Min Mat Sto Rec Scr Fac Was Fac Low Low Zio Pro Fac Was Fac Upp Upp Zhi Pro Fac Was Fac Ext Cet Arc Hub Res Arm Lab Res Qua Frg Slots Evolved 16 | . . 2 . . . 2 . . . 4 . . . . . . 2 . . . . . . 2 . . . . . . 2 . . 2 . . Power 1 | . . . . . . . . . . . . . . . . . . . . . . . . . . . . . . . . . . 1 . . Propulsion 5 | . . 1 . . . 1 . . . 1 . . . . . . 1 . . . . . . . . . . . . . 1 . . . . . Utility 10 | . . 1 . . . 1 . . . 3 . . . . . . 1 . . . . . . 2 . . . . . . 1 . . 1 . . Weapon . | . . . . . . . . . . . . . . . . . . . . . . . . . . . . . . . . . . . . . Parts Attached 218 | 2 18 20 1 . 2 13 22 5 9 11 1 15 1 6 2 3 6 . 10 2 . 7 3 5 1 3 4 1 3 . 8 11 4 11 6 2 Power 24 | . 4 3 . . 1 1 3 1 . 1 . 2 . 2 . . 1 . 1 . . 2 . . . 1 . . . . . . . 1 . . Engine 12 | . 4 3 . . . 1 . 1 . . . 1 . 1 . . 1 . . . . . . . . . . . . . . . . . . . Core 8 | . . . . . 1 . 3 . . 1 . 1 . 1 . . . . . . . 1 . . . . . . . . . . . . . . Reactor 4 | . . . . . . . . . . . . . . . . . . . 1 . . 1 . . . 1 . . . . . . . 1 . . Propulsion 66 | 2 5 10 . . 1 7 4 1 5 1 1 3 . 1 . 1 2 . 3 . . 2 . 1 1 1 . 1 . . 2 1 . 4 4 2 Treads 25 | 1 2 9 . . 1 6 4 1 1 . . . . . . . . . . . . . . . . . . . . . . . . . . . Leg . | . . . . . . . . . . . . . . . . . . . . . . . . . . . . . . . . . . . . . Wheel 11 | 1 3 . . . . . . . 1 . . . . . . . . . . . . . . . . . . . . . 1 . . . 3 2 Hover 1 | . . . . . . . . . . . . . . . . . . . . . . . . . . . . . . . . . . . 1 . Flight 29 | . . 1 . . . 1 . . 3 1 1 3 . 1 . 1 2 . 3 . . 2 . 1 1 1 . 1 . . 1 1 . 4 . . Utility 88 | . 2 3 . . . 3 7 1 4 5 . 10 1 3 . 1 3 . 4 2 . 3 3 4 . 1 3 . 3 . 5 9 2 5 1 . Device 39 | . . 1 . . . 1 2 1 . 2 . 2 . 3 . 1 1 . 2 1 . 1 1 3 . 1 2 . 1 . 3 7 1 2 . . Storage 6 | . 1 1 . . . . . . 1 . . 1 . . . . . . . . . . . 1 . . . . . . . . . . 1 . Processor 12 | . . . . . . 2 1 . . . . 2 1 . . . . . . . . . 1 . . . . . . . 1 1 . 3 . . Hackware 17 | . . . . . . . . . 1 3 . 5 . . . . 1 . . 1 . 1 . . . . 1 . 2 . . 1 1 . . . Protection 14 | . 1 1 . . . . 4 . 2 . . . . . . . 1 . 2 . . 1 1 . . . . . . . 1 . . . . . Artifact . | . . . . . . . . . . . . . . . . . . . . . . . . . . . . . . . . . . . . . Weapon 40 | . 7 4 1 . . 2 8 2 . 4 . . . . 2 1 . . 2 . . . . . . . 1 . . . 1 1 2 1 1 . Energy Gun 1 | . 1 . . . . . . . . . . . . . . . . . . . . . . . . . . . . . . . . . . . Energy Cannon 12 | . 2 2 . . . 1 3 . . . . . . . . . . . 1 . . . . . . . 1 . . . 1 . . 1 . . Ballistic Gun 9 | . 2 1 . . . . 4 2 . . . . . . . . . . . . . . . . . . . . . . . . . . . . Ballistic Cannon . | . . . . . . . . . . . . . . . . . . . . . . . . . . . . . . . . . . . . . Launcher 5 | . . . 1 . . 1 . . . 1 . . . . 2 . . . . . . . . . . . . . . . . . . . . . Special Weapon 4 | . 1 . . . . . . . . 1 . . . . . . . . . . . . . . . . . . . . . 1 1 . . . Impact Weapon 4 | . . 1 . . . . 1 . . 2 . . . . . . . . . . . . . . . . . . . . . . . . . . Slashing Weapon 3 | . 1 . . . . . . . . . . . . . . . . . . . . . . . . . . . . . . . 1 . 1 . Piercing Weapon 2 | . . . . . . . . . . . . . . . . 1 . . 1 . . . . . . . . . . . . . . . . . Special Melee Weapon . | . . . . . . . . . . . . . . . . . . . . . . . . . . . . . . . . . . . . . Unidentified Prototypes 32 | . . 3 . . . 2 1 . . 2 . . . . 2 . . . 1 . . 4 . . 1 . . . . . 2 7 5 1 1 . Corrupted Parts 1 | . . . . . . . . . 1 . . . . . . . . . . . . . . . . . . . . . . . . . . . System Corruption 3 | . . . . . . . . . 3 . . . . . . . . . . . . . . . . . . . . . . . . . . . Parts Lost 61 | . 3 1 . . . 1 6 1 . . . 10 1 1 . . 3 . 2 . 1 . 1 . . 1 2 1 . 1 . 1 . 9 5 10 Power 10 | . . . . . . . 1 1 . . . 2 . . . . 1 . 1 . . . . . . 1 1 . . . . . . 1 1 . Propulsion 23 | . 2 . . . . . 1 . . . . 4 . . . . 1 . . . . . . . . . . 1 . . . . . 6 2 6 Utility 23 | . . . . . . . 3 . . . . 4 1 1 . . 1 . 1 . 1 . 1 . . . 1 . . 1 . 1 . 2 2 3 Weapon 5 | . 1 1 . . . 1 1 . . . . . . . . . . . . . . . . . . . . . . . . . . . . 1 Highest Loss Streak 8 | . 2 1 . . . 1 2 1 . . . 4 1 1 . . 3 . 1 . 1 . 1 . . 1 1 1 . 1 . 1 . 6 4 8 To Critical Strikes 1 | . . . . . . . . . . . . . . . . . 1 . . . . . . . . . . . . . . . . . . . Average Backups 12 | 6 7 13 20 20 20 19 19 19 16 8 9 9 8 8 9 8 7 8 8 8 7 7 8 7 8 7 7 7 8 8 8 9 8 8 5 6 Power . | 1 . . 1 1 1 . . . . . . . 1 1 1 1 . . . 1 1 . . . 1 . . 1 1 1 1 1 1 . . . Propulsion 3 | 4 1 5 7 7 7 6 6 6 4 1 2 . . . . . . 1 1 1 1 1 2 2 2 2 2 1 1 1 1 1 . . . . Utility 3 | . . 1 3 3 3 6 6 7 7 5 5 5 3 4 3 3 2 2 2 2 2 2 2 1 1 1 1 1 2 2 1 2 2 2 1 1 Weapon 4 | 1 3 6 9 9 8 6 6 6 4 1 1 1 2 2 3 3 3 3 3 2 2 2 2 2 2 2 2 3 3 3 3 3 3 3 3 4 Tool/Special . | . . . . . . . . . . . . . . . . . . . . . . . . . . . . . . . . . . . . . Unused Backups 51 | . 8 7 . . 1 6 1 . 6 4 . 3 . . 4 1 . . 2 . . . . . . 1 1 . . . 1 . . 2 1 2 Power 6 | . 2 . . . . . . . . 1 . . . . . . . . . . . . . . . 1 1 . . . 1 . . . . . Propulsion 7 | . 2 1 . . . 2 1 . . . . . . . . . . . 1 . . . . . . . . . . . . . . . . . Utility 13 | . 1 1 . . . 1 . . 1 3 . 3 . . 2 1 . . . . . . . . . . . . . . . . . . . . Weapon 22 | . 3 4 . . 1 3 . . 4 . . . . . 1 . . . 1 . . . . . . . . . . . . . . 2 1 2 Tool/Special 3 | . . 1 . . . . . . 1 . . . . . 1 . . . . . . . . . . . . . . . . . . . . . Average Slot Usage (%) 91 | . 91 98 100 100 100 97 96 99 96 90 93 86 71 77 92 91 84 82 83 86 92 92 92 92 94 94 89 94 92 94 88 88 86 84 60 45 Engine 4 | . 14 11 11 11 10 1 1 7 9 . . 3 . 2 . . 1 5 3 . . . . . . . . . . . . . . . . . Core 2 | . . . . . . 7 6 1 . 5 6 1 6 3 6 6 3 . . . . 1 5 5 5 4 3 . . . 3 4 4 4 2 . Treads 15 | . 14 32 33 33 33 35 35 36 24 . . . . . . . . . . . . . . . . . . . . . . . . . . . Wheel 1 | . 14 . . . . . . . . . . . . . . . . . . . . . . . . . . . . . . . . . 6 9 Flight 13 | . . . . . . . . . 11 33 33 30 26 31 33 33 32 29 29 29 29 29 29 26 26 26 26 26 26 26 22 23 23 19 8 5 Device 10 | . . 10 11 11 11 15 8 8 . 5 6 5 5 4 13 11 9 11 11 11 11 14 12 24 26 26 21 21 22 21 22 25 24 23 17 11 Storage 7 | . 14 11 11 11 11 9 9 9 9 6 6 6 6 6 6 6 5 5 5 5 5 5 5 5 5 5 5 5 5 5 4 4 4 3 2 4 Processor 5 | . . . . . . 1 8 9 6 . . 4 9 13 13 13 11 11 11 11 11 8 5 5 5 5 5 5 5 5 4 4 4 8 5 4 Hackware 6 | . . . . . . . . . 9 23 26 19 6 6 6 6 5 5 5 8 11 11 11 10 10 10 10 15 11 15 9 9 9 8 6 3 Protection 7 | . 6 10 11 11 11 9 8 9 11 7 6 6 7 1 5 6 5 5 6 5 4 4 8 5 5 5 5 5 5 5 8 4 4 3 2 2 Energy Cannon 6 | . 13 21 20 22 22 17 5 . . . . . . . . . . . . . . . . . . . 3 . . . 2 1 . 1 . . Ballistic Gun 3 | . 6 . . . . . 11 18 11 . . . . . . . . . . . . . . . . . . . . . . . . . . . Impact Weapon 1 | . . . . . . . . . 3 4 6 5 . 4 6 5 . . . . 4 5 5 4 5 5 3 5 . . . . . . . . Peak Build Rating 168 | 6 8 19 19 19 19 25 36 34 38 51 51 62 53 62 72 72 78 78 86 90 93 104 100 118 123 125 124 118 120 120 135 145 151 168 122 95 Average Rating 52 | 5 7 14 19 19 18 22 28 32 34 48 51 51 46 53 67 64 73 77 80 83 90 96 97 110 121 124 118 115 117 119 132 138 140 144 103 73 On Entrance 71 | 6 6 8 19 19 19 18 24 31 32 33 51 51 42 42 62 67 71 77 78 80 90 93 98 100 118 123 124 118 115 120 114 134 133 151 100 93 Avg Prop Armor Cover (%) 7 | . 11 16 . . . . 6 . . . . 4 . . . . 1 . . . . . . . . . . . . . . . . . 1 1 Naked Turns . | . . . . . . . . . . . . . . . . . . . . . . . . . . . . . . . . . . . . . Heaviest Build 63 | 11 24 60 58 58 58 63 63 57 57 28 26 30 26 26 35 28 30 30 34 33 33 32 36 33 31 39 40 39 39 38 46 46 50 60 38 33 Greatest Support 86 | 16 16 63 63 63 63 82 84 84 86 26 26 29 20 27 27 36 35 32 38 38 38 38 47 38 39 39 39 39 39 51 59 60 60 60 45 55 Greatest Overweight (x) 3 | . 2 1 . . . 1 1 . 1 1 . 1 1 1 1 1 1 . . . . . . . . . 1 . . . 1 3 . 2 1 . Average Overweight (x) . | . 1 . . . . . . . . . . . . . . . . . . . . . . . . . . . . . . . . . . . Largest Inventory Capacity 20 | 8 10 20 20 20 20 20 20 20 20 10 10 10 10 10 10 10 10 10 10 10 10 10 10 10 10 10 10 10 10 10 10 10 10 10 10 10 Average Capacity 13 | 8 8 14 20 20 20 20 20 20 16 10 10 10 10 10 10 10 10 10 10 10 10 10 10 10 10 10 10 10 10 10 10 10 10 9 8 10 Most Carried 20 | 6 10 20 20 20 20 20 20 20 20 10 10 10 9 10 10 10 9 10 10 10 10 10 10 10 10 10 10 10 10 10 10 10 10 10 8 8 Average Carried 13 | 5 7 13 20 20 20 19 19 19 16 9 10 9 8 9 9 9 8 9 9 9 9 9 10 9 10 9 9 9 10 10 9 9 8 8 6 8 Final Capacity 20 | 8 10 20 20 20 20 20 20 20 10 10 10 10 10 10 10 10 10 10 10 10 10 10 10 10 10 10 10 10 10 10 10 10 10 5 10 10 Final Carried 20 | 4 10 20 20 20 20 20 20 20 10 10 10 9 9 10 10 10 8 10 10 10 9 10 10 10 10 10 10 10 10 10 9 9 10 5 8 8 Class Distribution -------------------- 34% | Mutant 23% | Hacker-Sprinter 12% | Commander-Mutant 10% | Scavenger-Mutant 7% | Sprinter 3% | Derelict-Mutant 3% | Derelict-Sprinter Dominant Class ---------------- Mutant | -10/Materials Mutant | -9/Materials Mutant | -9/Mines Mutant | -9/Exiles Mutant | -8/Mines Scavenger-Mutant | -8/Materials Scavenger-Mutant | -8/Storage Commander-Mutant | -8/Recycling Commander-Mutant | -8/Scraptown Hacker-Sprinter | -6/Factory Hacker-Sprinter | -6/Waste Hacker-Sprinter | -6/Factory Sprinter | -6/Lower Caves Sprinter | -6/Lower Caves Derelict-Mutant | -6/Zion Derelict-Sprinter | -5/Proximity Caves Derelict-Sprinter | -5/Factory Sprinter | -5/Waste Sprinter | -5/Factory Hacker-Sprinter | -5/Upper Caves Hacker-Sprinter | -5/Upper Caves Hacker-Sprinter | -5/Zhirov Hacker-Sprinter | -4/Proximity Caves Hacker-Scout | -4/Factory Hacker-Scout | -4/Waste Hacker-Scout | -4/Factory Hacker-Sprinter | -4/Extension Hacker-Sprinter | -4/Cetus Hacker-Sprinter | -4/Archives Hacker-Sprinter | -4/Hub_04(d) Hacker-Sprinter | -3/Research Hacker-Sprinter | -3/Armory Hacker-Sprinter | -3/Lab Hacker-Sprinter | -2/Research Hacker-Mutant | -2/Quarantine Scavenger-Mutant | -2/Protoforge Resources | -11 -10 -9 -9 -9 -8 -8 -8 -8 -8 -6 -6 -6 -6 -6 -6 -5 -5 -5 -5 -5 -5 -5 -4 -4 -4 -4 -4 -4 -4 -4 -3 -3 -3 -2 -2 -2 ----------- Run | Yrd Mat Mat Min Exi Min Mat Sto Rec Scr Fac Was Fac Low Low Zio Pro Fac Was Fac Upp Upp Zhi Pro Fac Was Fac Ext Cet Arc Hub Res Arm Lab Res Qua Frg Matter Collected 4931 | 191 254 260 67 53 20 155 821 213 140 189 35 331 304 142 56 30 20 . 139 55 70 90 45 117 . . 488 25 50 10 111 46 . 106 261 37 Remotely . | . . . . . . . . . . . . . . . . . . . . . . . . . . . . . . . . . . . . . Salvage Created 11447 | . 763 1667 99 . 676 671 1972 562 136 487 . 628 202 . . 163 128 . 435 . 73 90 102 280 . 132 1045 . 202 178 111 88 . 125 404 28 Parts 527 | . 42 94 7 . 29 42 86 20 3 5 . 30 3 . . 14 7 . 16 . 9 1 7 12 . 4 19 . 16 6 4 4 . 16 28 3 Haulers Intercepted 27 | . 2 4 . . . 3 6 . . 3 . 1 . . . . . . 3 . . . . 1 . 1 1 . . 1 1 . . . . . Recyclers Shooed 6 | . . 1 . . . . 1 2 . . . 2 . . . . . . . . . . . . . . . . . . . . . . . . Parts Field Recycled . | . . . . . . . . . . . . . . . . . . . . . . . . . . . . . . . . . . . . . Retrieved Matter . | . . . . . . . . . . . . . . . . . . . . . . . . . . . . . . . . . . . . . Parts Self-Destructed 42 | . . . . . . . . . . . . . 3 6 . 19 . . . . 7 . 7 . . . . . . . . . . . . . Prevented 1 | . . . . . . . . . . . . . . . . 1 . . . . . . . . . . . . . . . . . . . . Parts Restored . | . . . . . . . . . . . . . . . . . . . . . . . . . . . . . . . . . . . . . Kills | -11 -10 -9 -9 -9 -8 -8 -8 -8 -8 -6 -6 -6 -6 -6 -6 -5 -5 -5 -5 -5 -5 -5 -4 -4 -4 -4 -4 -4 -4 -4 -3 -3 -3 -2 -2 -2 ------- Run | Yrd Mat Mat Min Exi Min Mat Sto Rec Scr Fac Was Fac Low Low Zio Pro Fac Was Fac Upp Upp Zhi Pro Fac Was Fac Ext Cet Arc Hub Res Arm Lab Res Qua Frg Combat Hostiles Destroyed 144 | . 14 30 3 . 6 8 29 4 . . . 11 4 1 . 2 1 . 1 . 5 . 1 5 . . 13 . 1 . . . . 2 2 1 Melee 7 | . 2 . . . . . 2 . . . . . . . . . . . . . . . . . . . . . . . . . . . 2 1 Guns 25 | . 8 . . . . . 13 4 . . . . . . . . . . . . . . . . . . . . . . . . . . . . Cannons 64 | . 4 29 1 . 6 8 12 . . . . . . . . . . . . . . . . . . . 1 . 1 . . . . 2 . . AOE 34 | . . . 2 . . . 1 . . . . 11 4 . . . . . . . 5 . . 5 . . 6 . . . . . . . . . Classes Destroyed 20 | . 9 2 . . 2 1 . 1 1 . . 1 . 1 . 1 . . . . . . . . . . . . . . . . . . . 1 Worker 26 | . 1 1 . . 1 1 2 . . . . 11 . . . . . . 1 . . . . 3 . . 1 . . . . . . . 3 1 Builder 13 | . 1 2 . . 1 1 . . . . . 4 . . . . . . . . . . . . . . 1 . . . . . . 2 1 . Tunneler 3 | . 1 . . . . . . . . . . 1 . . . . . . . . . . . . . . . . . . . . . 1 . . Hauler 27 | . 2 4 . . . 3 6 . . 3 . 1 . . . . . . 3 . . . . 1 . 1 1 . . 1 1 . . . . . Recycler 22 | . 1 2 . . 5 . 3 5 . 1 . 1 . . . . . . . . . . . 1 . . 2 . . . . . . . 1 . Mechanic 4 | . 1 1 . . . . 2 . . . . . . . . . . . . . . . . . . . . . . . . . . . . . Operator 7 | . . 2 . . . . . . . . . 1 . . . . . . . . . . . . . 1 . . 3 . . . . . . . Drone 1 | . . . . . . . . . . . . . . . . . . . . . . . . . . . . . . . . . . . . 1 Watcher 20 | . 2 3 . . . 2 1 . . 1 . 3 . . . . 1 . 1 . . . . . . 1 1 . . 2 . 2 . . . . Swarmer 45 | . 3 9 . . . . 3 1 1 . . 8 4 . . . . . . . 5 . . 5 . . 4 . . . . . . 2 . . Grunt 53 | . 11 13 3 . 4 1 16 . . . . . . . . . . . . . . . . . . . 5 . . . . . . . . . Brawler 1 | . . . . . 1 . . . . . . . . . . . . . . . . . . . . . . . . . . . . . . . Duelist 3 | . . . . . 1 . . 1 . . . . . . . . . . . . . . . . . . 1 . . . . . . . . . Protector 1 | . . . . . . . . 1 . . . . . . . . . . . . . . . . . . . . . . . . . . . . Sentry 26 | . . 8 . . . 3 10 1 . . . 2 . . . 1 . . . . . . . . . . . . 1 . . . . . . . Hunter 7 | . . . . . . 4 . . 2 . . . . . . . . . . . . . . . . . 1 . . . . . . . . . Programmer 3 | . . . . . . . . . . . . 1 . . . . . . . . . . . . . . . . . . . . . . 2 . Behemoth 6 | . . . . . . . . . . . . . . . . 1 1 . 1 . . . 1 . . . 2 . . . . . . . . . Scientist 1 | . . . . . . . . . 1 . . . . . . . . . . . . . . . . . . . . . . . . . . . Decomposer 1 | . . . . . . . . . . . . . 1 . . . . . . . . . . . . . . . . . . . . . . . Packrat 2 | . . . . . . . . . . . . . 2 . . . . . . . . . . . . . . . . . . . . . . . Thief 1 | . . . . . . . . . . . . . . 1 . . . . . . . . . . . . . . . . . . . . . . Best Kill Streak 11 | . 3 6 3 . 7 3 8 6 . 2 . 7 4 1 . 1 2 . 2 . 5 . 1 6 . 2 11 . 3 3 1 1 . 2 3 1 Combat Bots Only 7 | . 3 4 3 . 3 3 7 3 . . . 4 4 5 . 1 1 . 1 . 5 . 1 5 . . 5 . 1 . . . . 2 2 1 Max Kills in Single Turn 7 | . 2 1 1 . 2 1 4 1 1 1 . 7 2 1 . 1 1 . 1 . 4 . 1 4 . 1 4 . 1 1 1 1 . 1 1 1 Gunslinging . | . . . . . . . . . . . . . . . . . . . . . . . . . . . . . . . . . . . . . Exploded 4 | . . . 1 . . . 1 . . . . 3 2 . . . . . . . 4 . . 4 . . 3 . . . . . . . . . Melee 1 | . 1 . . . . . 1 . . . . . . . . . . . . . . . . . . . . . . . . . . . 1 1 Uniques/NPCs Destroyed . | . . . . . . . . . . . . . . . . . . . . . . . . . . . . . . . . . . . . . Combat | -11 -10 -9 -9 -9 -8 -8 -8 -8 -8 -6 -6 -6 -6 -6 -6 -5 -5 -5 -5 -5 -5 -5 -4 -4 -4 -4 -4 -4 -4 -4 -3 -3 -3 -2 -2 -2 -------- Run | Yrd Mat Mat Min Exi Min Mat Sto Rec Scr Fac Was Fac Low Low Zio Pro Fac Was Fac Upp Upp Zhi Pro Fac Was Fac Ext Cet Arc Hub Res Arm Lab Res Qua Frg Hostile Shots Fired 1206 | . 64 77 9 . 35 40 140 15 . 99 . 178 18 29 . 1 68 . 73 8 14 . 14 2 . 5 44 . . 8 14 21 . 80 66 84 Missed 499 | . 13 18 5 . 12 12 34 1 . 59 . 101 6 16 . . 32 . 42 5 7 . 10 1 . 3 17 . . 4 8 10 . 36 25 22 Hits 707 | . 51 59 4 . 23 28 106 14 . 40 . 77 12 13 . 1 36 . 31 3 7 . 4 1 . 2 27 . . 4 6 11 . 44 41 62 Melee 7 | . . . . . . . . 3 . . . . . 2 . . . . . . . . . . . . . . . 1 . . . 1 . . Projectile 700 | . 51 59 4 . 23 28 106 11 . 40 . 77 12 11 . 1 36 . 31 3 7 . 4 1 . 2 27 . . 3 6 11 . 43 41 62 AOE 4 | . . . . . . . . . . . . . . . . . . . . . . . . . . . . . . . . . . 4 . . Critical Strikes 32 | . 1 . . . 1 1 7 1 . 1 . 1 . . . . 3 . 3 . . . . . . . 3 . . . . 1 . 1 4 4 Actively Blocked 13 | . . . . . . . . . . . . . . . . . . . . . . . . . . . 3 . . . . 1 . 1 4 4 Part Disruptions 1 | . . . . . . . . . . . . . . . . . . . . . . . . . . . . . . . . . . . . 1 Damage Taken 12815 | . 605 701 85 . 352 423 1482 254 . 361 . 1208 206 178 . 18 615 . 714 60 114 . 100 22 . 44 563 27 . 134 70 295 . 984 1015 2185 Core 2893 | . 163 74 32 . 29 44 109 42 . 87 . 416 85 81 . . 213 . 122 . 16 . . . . . 45 . . . . . . 176 82 1077 Absorbed by Shields 44 | . . . . . . . 28 . . 16 . . . . . . . . . . . . . . . . . . . . . . . . . . Redirected to Shielding 109 | . . . . . . . . . . . . 77 11 21 . . . . . . . . . . . . . . . . . . . . . . Ignored by Resistances 3 | . . . . . . . . . . . . . . . . . . . . . . . 3 . . . . . . . . . . . . . Regen/Repaired (Parts) 1311 | . . 40 . . . . . . . 36 27 64 32 . 187 . . . 75 . . . 7 72 2 . 80 . . 13 83 6 . . 432 155 Core Remaining (%) 68 | 100 34 . . . 66 . . . 64 . . . . . . 21 . . . . . . 64 . . . . . . 96 . . 100 . . . Volleys Fired 464 | . 61 91 5 . 28 42 110 21 . 3 . 10 3 2 . . . . 3 . 2 . . 4 . . 26 . 4 . 14 19 . 14 2 . Largest 2 | . 2 2 2 . 2 2 2 2 . 1 . 1 1 1 . . . . 1 . 1 . . 1 . . 1 . 1 . 1 1 . 1 1 . Hottest 120 | . 120 120 120 . 120 120 120 50 . 39 . 39 39 39 . . . . 90 . 39 . . 39 . . 105 . 105 . 113 113 . 113 10 . Shots Fired 812 | . 119 182 7 . 56 83 216 42 . 3 . 10 3 2 . . . . 3 . 2 . . 4 . . 26 . 4 . 14 19 . 15 2 . Gun 258 | . 92 . . . . . 124 42 . . . . . . . . . . . . . . . . . . . . . . . . . . . . Cannon 489 | . 24 182 4 . 56 83 91 . . . . . . . . . . . 3 . . . . . . . 1 . 4 . 14 12 . 15 . . Launcher 30 | . . . 3 . . . 1 . . 1 . 10 3 2 . . . . . . 2 . . 2 . . 6 . . . . . . . . . Special 35 | . 3 . . . . . . . . 2 . . . . . . . . . . . . . 2 . . 19 . . . . 7 . . 2 . Kinetic 214 | . 48 . . . . . 124 42 . . . . . . . . . . . . . . . . . . . . . . . . . . . . Thermal 536 | . 71 182 4 . 56 83 91 . . . . . . . . . . . 3 . . . . . . . 1 . 4 . 14 12 . 15 . . Explosive 30 | . . . 3 . . . 1 . . 1 . 10 3 2 . . . . . . 2 . . 2 . . 6 . . . . . . . . . Electromagnetic . | . . . . . . . . . . . . . . . . . . . . . . . . . . . . . . . . . . . . . Robot Hit Streak 66 | . 12 26 12 . 9 11 66 12 . 1 . . . . . . . . . . . . . 2 . . 15 . 8 . . 15 . 16 3 . Robot Miss Streak 4 | . 3 3 1 . 2 4 4 2 . 1 . . 1 . . . . . . . . . . . . . 1 . . . . . . 1 . . Penetration Max . | . . . . . . . . . . . . . . . . . . . . . . . . . . . . . . . . . . . . . Secondary Targets 1 | . . . . . . . 1 . . . . . . . . . . . . . . . . . . . . . . . . . . . . . Max Gunslinging Chain 1 | . . . . . . . 1 . . . . . . . . . . . . . . . . . . . . . . . . . . . . . Shots Hit Robots 665 | . 90 127 3 . 38 60 167 29 4 6 . 16 3 2 . 4 2 . 7 . . 1 1 7 . 4 40 . 8 7 1 9 . 7 19 3 Core Hits 316 | . 30 52 4 . 19 27 73 15 1 1 . 24 6 1 . 1 1 . 5 . 7 . . 7 . 1 16 . 4 4 1 2 . 6 6 2 Critical Kills 7 | . . 2 . . . . 2 . 1 1 . 1 . . . . . . . . . . . . . . . . . . . . . . . . Critical Parts Destroyed 21 | . . 1 . . . . 1 . . 1 . 7 . 1 . 1 . . . . . . . 2 . 2 5 . . . . . . . . . Critical Strikes 42 | . 2 3 . . . . 3 . 1 2 . 8 . 1 . 1 . . 1 . . . . 3 . 2 7 . 2 3 . 1 . . 2 . Burn 2 | . 2 . . . . . . . . . . . . . . . . . . . . . . . . . . . . . . . . . . . Meltdown 3 | . . 2 . . . . 1 . . . . . . . . . . . . . . . . . . . . . . . . . . . . . Smash 25 | . . 1 . . . . 2 . 1 2 . 8 . 1 . 1 . . . . . . . 2 . 2 5 . . . . . . . . . Sever 2 | . . . . . . . . . . . . . . . . . . . . . . . . . . . . . . . . . . . 2 . Impale 10 | . . . . . . . . . . . . . . . . . . . 1 . . . . 1 . . 2 . 2 3 . 1 . . . . Melee Attacks 306 | . 12 3 . . . . 7 . 4 38 . 41 7 5 . 4 6 . 26 2 . 1 1 11 . 9 33 . 6 8 3 16 9 17 32 5 Impact 147 | . . 3 . . . . 7 . 4 38 . 41 7 5 . 2 . . . . . . . 8 . 7 25 . . . . . . . . . Slashing 73 | . 12 . . . . . . . . . . . . . . . . . . . . . . . . . . . . . . . 7 17 32 5 Piercing 86 | . . . . . . . . . . . . . . . . 2 6 . 26 2 . 1 1 3 . 2 8 . 6 8 3 16 2 . . . Sneak Attacks 65 | . 3 1 . . . . . . 4 4 . 13 3 . . 1 . . 4 . . . . 5 . 1 8 . 4 1 1 . . 3 6 3 Combat Hostiles 2 | . . . . . . . . . . . . . . . . 1 . . . . . . . . . . 1 . . . . . . . . . Follow-up Attacks 2 | . . . . . . . . . . . . . . . . . . . . . . . . 1 . 1 . . . . . . . . . . Damage Inflicted 23334 | . 1361 2352 232 . 757 1091 3280 525 366 578 . 3401 642 148 . 178 71 . 529 . 303 . . 1098 . 287 2387 . 511 350 60 114 . 528 1682 503 Guns 2730 | . 686 . . . . . 1554 490 . . . . . . . . . . . . . . . . . . . . . . . . . . . . Cannons 6051 | . 288 2295 36 . 757 1091 1295 . . . . . . . . . . . . . . . . . . . 34 . 140 . . . . 115 . . Explosions 4247 | . 86 . 196 . . . 224 . . . . 1829 296 68 . . . . . . 303 . . 465 . . 780 . . . . . . . . . Melee 10271 | . 301 57 . . . . 207 . 366 578 . 1572 346 80 . 178 71 . 529 . . . . 633 . 287 1573 . 371 350 60 114 . 413 1682 503 Ramming 35 | . . . . . . . . 35 . . . . . . . . . . . . . . . . . . . . . . . . . . . . Kinetic 2329 | . 285 . . . . . 1554 490 . . . . . . . . . . . . . . . . . . . . . . . . . . . . Thermal 7388 | . 775 2295 36 . 757 1091 1295 . . . . 850 . . . . . . . . . . . . . . 34 . 140 . . . . 115 . . Explosive 3311 | . . . 196 . . . 224 . . . . 979 296 68 . . . . . . 303 . . 465 . . 780 . . . . . . . . . Electromagnetic . | . . . . . . . . . . . . . . . . . . . . . . . . . . . . . . . . . . . . . Impact 5254 | . . 57 . . . . 207 . 366 578 . 1572 346 80 . 86 . . . . . . . 538 . 251 1173 . . . . . . . . . Slashing 2899 | . 301 . . . . . . . . . . . . . . . . . . . . . . . . . . . . . . . . 413 1682 503 Piercing 2118 | . . . . . . . . . . . . . . . . 92 71 . 529 . . . . 95 . 36 400 . 371 350 60 114 . . . . Highest Corruption 16 | . . . . . . . . . 3 9 9 16 16 16 16 . 2 2 2 2 . . . . 9 9 9 4 4 2 . . . 5 9 16 Average Corruption 6 | . . . . . . . . . 3 4 9 9 16 16 16 . 1 2 2 1 . . . . 9 9 4 4 2 2 . . . 2 6 11 Corruption Purged 11 | . . . . . . . . . . . . . . . . . . . . 2 . . . . . . 5 . 4 . . . . . . . Corruption Blocked . | . . . . . . . . . . . . . . . . . . . . . . . . . . . . . . . . . . . . . Effects 156 | . . . . . . . . . . 14 3 43 17 10 . . 2 1 4 2 . . . . 1 4 21 3 2 . . . . 10 10 9 Message Errors 36 | . . . . . . . . . . 1 2 6 2 2 . . 1 1 . 1 . . . . . 1 7 2 1 . . . . 3 5 1 Matter Fused 42 | . . . . . . . . . . 3 1 10 7 5 . . . . 2 . . . . . . 2 7 . . . . . . 2 2 1 Heat Flow Errors 15 | . . . . . . . . . . 4 . 4 2 2 . . . . . . . . . . . . 1 . . . . . . 1 . 1 Energy Discharges 16 | . . . . . . . . . . 1 . 5 3 . . . . . 1 1 . . . . 1 1 1 . . . . . . 2 . . Parts Rejected 5 | . . . . . . . . . . 1 . 3 . . . . . . . . . . . . . . . 1 . . . . . . . . Parts Fused 1 | . . . . . . . . . . . . . . . . . . . . . . . . . . . . . . . . . . 1 . . Data Loss (minor) 21 | . . . . . . . . . . 3 . 10 1 1 . . 1 . . . . . . . . . 2 . . . . . . . 2 1 Data Loss (major) 9 | . . . . . . . . . . . . 3 1 . . . . . 1 . . . . . . . 2 . 1 . . . . . 1 . Misfires 1 | . . . . . . . . . . . . . . . . . . . . . . . . . . . . . . . . . . 1 . . Alerts 4 | . . . . . . . . . . 1 . 1 . . . . . . . . . . . . . . 1 . . . . . . . . 1 Misdirections 6 | . . . . . . . . . . . . 1 1 . . . . . . . . . . . . . . . . . . . . . . 4 Overload Shots . | . . . . . . . . . . . . . . . . . . . . . . . . . . . . . . . . . . . . . Overflow Damage 4612 | . 72 88 . . . 13 60 . 163 322 . 1342 257 42 . 37 . . 85 . . . . 497 . 185 681 . 205 142 . . . . 313 108 Projectiles 86 | . 6 31 . . . 13 . . 27 . . 9 . . . . . . . . . . . . . . . . . . . . . . . . Explosions 349 | . 43 . . . . . . . . . . 226 . . . . . . . . . . . 44 . . 36 . . . . . . . . . Melee 4177 | . 23 57 . . . . 60 . 136 322 . 1107 257 42 . 37 . . 85 . . . . 453 . 185 645 . 205 142 . . . . 313 108 Knockbacks 22 | . . 1 . . . . 2 1 4 . . 9 . 1 . . . . . . . . . . . . 4 . . . . . . . . . Impact 17 | . . 1 . . . . 1 1 2 . . 7 . 1 . . . . . . . . . . . . 4 . . . . . . . . . Kinetic . | . . . . . . . . . . . . . . . . . . . . . . . . . . . . . . . . . . . . . Secondary 5 | . . . . . . . 1 . 2 . . 2 . . . . . . . . . . . . . . . . . . . . . . . . Self-Inflicted Damage 74 | . . . 26 . . . . . . . . . . 48 . . . . . . . . . . . . . . . . . . . . . . Shots 2 | . . . 1 . . . . . . . . . . 1 . . . . . . . . . . . . . . . . . . . . . . Rammed 2 | . . . . . . . . 2 . . . . . . . . . . . . . . . . . . . . . . . . . . . . Targets Rammed 2 | . . . . . . . . 2 . . . . . . . . . . . . . . . . . . . . . . . . . . . . Kicked . | . . . . . . . . . . . . . . . . . . . . . . . . . . . . . . . . . . . . . Crushed . | . . . . . . . . . . . . . . . . . . . . . . . . . . . . . . . . . . . . . Highest Temperature 389 | . 212 180 6 . 168 20 389 . . 278 3 259 114 279 . 4 100 2 88 . . 1 48 . . 1 189 1 208 191 234 235 . 260 . 113 Average Temperature 53 | . 72 25 3 . 46 8 66 . . 59 1 58 54 112 . 4 39 2 11 . . 1 10 . . 1 28 1 110 53 71 66 . 79 . 69 Received Heat Transfer 2443 | . 345 186 33 . 225 54 760 45 . 36 . 42 45 18 . 9 30 . 135 . . . 21 . . 9 132 . . 30 . 27 . 27 18 216 Effects 6 | . . . . . . . 3 . . 2 . . . 1 . . . . . . . . . . . . . . . . . . . . . . Energy Bleed 2 | . . . . . . . . . . 1 . . . 1 . . . . . . . . . . . . . . . . . . . . . . Interference 4 | . . . . . . . 3 . . 1 . . . . . . . . . . . . . . . . . . . . . . . . . . Siege Activations . | . . . . . . . . . . . . . . . . . . . . . . . . . . . . . . . . . . . . . Martial Activations . | . . . . . . . . . . . . . . . . . . . . . . . . . . . . . . . . . . . . . Shielding Activations . | . . . . . . . . . . . . . . . . . . . . . . . . . . . . . . . . . . . . . Robots Disrupted . | . . . . . . . . . . . . . . . . . . . . . . . . . . . . . . . . . . . . . Combat Hostiles . | . . . . . . . . . . . . . . . . . . . . . . . . . . . . . . . . . . . . . Robots Corrupted 21 | . . . . . . . 1 . 1 2 . 8 . 1 . 1 . . . . . . . 1 . 1 5 . . . . . . . . . Combat Hostiles 6 | . . . . . . . . . . . . . . 1 . 1 . . . . . . . . . . 4 . . . . . . . . . Parts Fried 34 | . . . . . . . 1 . 5 6 . 9 . . . . . . . . . . . 4 . 2 7 . . . . . . . . . Impact Corruptions 91 | . . 2 . . . . 2 . 4 7 . 39 9 3 . 1 . . . . . . . 8 . 4 12 . . . . . . . . . Robots Melted 3 | . . 2 . . . . 1 . . . . . . . . . . . . . . . . . . . . . . . . . . . . . Combat Hostiles 2 | . . 1 . . . . 1 . . . . . . . . . . . . . . . . . . . . . . . . . . . . . Parts Melted 33 | . 4 9 . . 5 5 9 . . . . 1 . . . . . . . . . . . . . . . . . . . . . . . . Heat Transferred 14377 | . 2024 4810 74 . 1591 2294 2738 . . . . 550 . . . . . . . . . . . . . . 37 . 148 . . . . 111 . . Parts Sabotaged . | . . . . . . . . . . . . . . . . . . . . . . . . . . . . . . . . . . . . . Parts Stolen 1 | . . . . . . . . . . . . . . 1 . . . . . . . . . . . . . . . . . . . . . . Parts Stripped . | . . . . . . . . . . . . . . . . . . . . . . . . . . . . . . . . . . . . . Power Chain Reactions . | . . . . . . . . . . . . . . . . . . . . . . . . . . . . . . . . . . . . . Alert | -11 -10 -9 -9 -9 -8 -8 -8 -8 -8 -6 -6 -6 -6 -6 -6 -5 -5 -5 -5 -5 -5 -5 -4 -4 -4 -4 -4 -4 -4 -4 -3 -3 -3 -2 -2 -2 ------- Run | Yrd Mat Mat Min Exi Min Mat Sto Rec Scr Fac Was Fac Low Low Zio Pro Fac Was Fac Upp Upp Zhi Pro Fac Was Fac Ext Cet Arc Hub Res Arm Lab Res Qua Frg Maximum Alert Level 3 | . . 1 . . . . 1 . . 1 . 3 . . . . . . 1 . . . . . . . 2 2 1 1 . 2 . . . . Low Security (%) 69 | 100 100 35 100 . 100 100 75 100 . 84 100 20 . . . . 100 100 78 . . . . 100 100 100 5 . 66 82 100 39 . 100 100 100 Level 1 22 | . . 64 . . . . 24 . . 15 . 46 . . . . . . 21 . . . . . . . 31 70 33 17 . 32 . . . . Level 2 7 | . . . . . . . . . . . . 27 . . . . . . . . . . . . . . 63 29 . . . 28 . . . . Level 3 . | . . . . . . . . . . . . 5 . . . . . . . . . . . . . . . . . . . . . . . . Level 4 . | . . . . . . . . . . . . . . . . . . . . . . . . . . . . . . . . . . . . . Level 5 . | . . . . . . . . . . . . . . . . . . . . . . . . . . . . . . . . . . . . . High Security . | . . . . . . . . . . . . . . . . . . . . . . . . . . . . . . . . . . . . . Max Security . | . . . . . . . . . . . . . . . . . . . . . . . . . . . . . . . . . . . . . Peak Influence 738 | . 118 352 168 . 69 145 239 83 . 282 96 738 . . . . 160 56 296 . . . . 164 18 180 636 418 218 314 196 502 . 69 121 52 Initial 342 | . . 11 75 . . 25 9 82 . . 96 39 . . . . 4 56 32 . . . . 46 3 5 74 342 147 68 153 25 . . . 29 Average 150 | . 55 192 135 . 9 43 158 35 . 111 80 359 . . . . 30 54 143 . . . . 34 10 121 429 382 182 92 35 277 . 20 71 24 Influence Increases 10388 | . 519 926 93 . 175 290 929 306 . 600 . 1357 135 60 . 193 253 . 488 45 110 5 105 198 15 237 1154 146 169 374 178 685 . 233 307 103 Destroy 0b10 Robot/C 3520 | . 280 600 60 . 120 160 580 100 . . . 220 80 . . 140 20 . 20 . 100 . 20 100 . . 500 80 80 80 . 100 . 40 40 . Destroy 0b10 Robot/NC 635 | . 45 75 . . 35 35 70 30 . 25 . 110 . . . . 5 . 25 . . 5 . 25 . 15 35 . 15 15 5 10 . 15 30 10 Destroy Leader 752 | . 68 174 10 . 20 80 164 . . 8 . 38 10 . . 20 12 . 18 . 10 . 10 12 . 4 52 . . 16 2 14 . . 10 . Allied During Kill 457 | . . . . . . . . 13 . . . . . . . 33 . . . . . . . . . . 235 62 57 30 . 27 . . . . Trap Triggered on 0b10 10 | . . . . . . . . . . . . 10 . . . . . . . . . . . . . . . . . . . . . . . . Successful Hack 841 | . 25 29 . . . . 38 43 . 124 . 35 . . . . . . 96 . . . . 26 . 94 36 . . 44 91 106 . 4 8 42 Select Force Hacks 280 | . 30 30 . . . . . 120 . . . . . . . . . . . . . . . . . . . . . 100 . . . . . . Disable Machine 435 | . 15 . . . . 15 30 . . 15 . 75 . . . . . . . . . . . . . 30 30 . 15 15 15 90 . 15 75 . Destroy Structure 533 | . 11 3 23 . . . 17 . . 38 . 104 . . . . 6 . 44 . . . . 20 . 4 116 4 2 14 20 38 . 54 9 6 Partial Spotted 510 | . . . . . . . . . . 90 . 45 . . . . . . 45 . . . . . 15 15 75 . . . 15 105 . 75 30 . Lose Combat Pursuer 2415 | . 45 15 . . . . 30 . . 300 . 720 45 60 . . 210 . 240 45 . . 75 15 . 75 75 . . 60 30 195 . 30 105 45 Influence Decreases 10363 | . 491 759 170 118 109 334 739 501 17 324 220 681 496 202 229 185 101 114 256 154 83 196 35 264 16 93 694 390 341 276 423 414 320 233 254 131 Entered New Map 2930 | . . 17 120 118 . 41 13 130 17 . 180 17 272 72 229 . 4 104 14 104 33 196 5 29 6 3 78 270 221 128 141 24 320 . . 24 Time Decay 5441 | . 461 582 50 . 109 187 516 361 . 264 40 464 214 120 . 158 87 10 222 50 40 . 30 85 10 50 416 70 100 50 81 170 . 153 204 87 Search Patrol Dispatched 100 | . . . . . . . . . . . . 100 . . . . . . . . . . . . . . . . . . . . . . . . Lost Part 490 | . 30 10 . . . 10 60 10 . . . 100 10 10 . . 10 . 20 . 10 . . . . 10 20 10 . 10 . 10 . 80 50 20 Lost Ally 437 | . . . . . . . . . . 60 . . . . . 27 . . . . . . . . . 30 180 40 20 20 . 60 . . . . Purge Threat 965 | . . 150 . . . 96 150 . . . . . . . . . . . . . . . . 150 . . . . . 68 201 150 . . . . Squads Dispatched 85 | . 4 4 . . . 2 7 . . 9 . 8 . . . . 6 . 8 . . . . 4 . 4 1 . . 7 4 3 . 4 4 6 Investigation 41 | . 2 1 . . . . . . . 7 . 5 . . . . 4 . 6 . . . . 2 . 3 . . . 3 3 . . 1 . 4 Extermination 14 | . . . . . . . . . . 2 . 2 . . . . . . 1 . . . . 1 . . . . . . 1 2 . 2 2 1 Reinforcement 23 | . 2 3 . . . 1 4 . . . . 1 . . . . 2 . 1 . . . . 1 . 1 . . . 2 . 1 . 1 2 1 Assault 3 | . . . . . . . . . . . . . . . . . . . . . . . . . . . 1 . . 2 . . . . . . Garrison 4 | . . . . . . 1 3 . . . . . . . . . . . . . . . . . . . . . . . . . . . . . Intercept . | . . . . . . . . . . . . . . . . . . . . . . . . . . . . . . . . . . . . . Searches Triggered 1 | . . . . . . . . . . . . 1 . . . . . . . . . . . . . . . . . . . . . . . . Unchained Authorized 1 | . . . . . . . . . . . . . . . . . . . . . . . . . . . . . . . 1 . . . . . Construction Impeded 2 | . . . . . . . 1 . . . . 1 . . . . . . . . . . . . . . . . . . . . . . . . Haulers Reinforced 1 | . . . . . . . . . . . . . . . . . . . . . . . . . . 1 . . . . . . . . . . Active Scanning Responses . | . . . . . . . . . . . . . . . . . . . . . . . . . . . . . . . . . . . . . Cargo Convoy Interrupts . | . . . . . . . . . . . . . . . . . . . . . . . . . . . . . . . . . . . . . Stealth | -11 -10 -9 -9 -9 -8 -8 -8 -8 -8 -6 -6 -6 -6 -6 -6 -5 -5 -5 -5 -5 -5 -5 -4 -4 -4 -4 -4 -4 -4 -4 -3 -3 -3 -2 -2 -2 --------- Run | Yrd Mat Mat Min Exi Min Mat Sto Rec Scr Fac Was Fac Low Low Zio Pro Fac Was Fac Upp Upp Zhi Pro Fac Was Fac Ext Cet Arc Hub Res Arm Lab Res Qua Frg Distress Signals 24 | . 2 5 . . . 1 . . . . . 3 . . . . 3 . 1 . . . . . . 2 . 1 . . 1 1 . 3 . 1 Communications Jammed 29 | . . . . . . . . . . . . . . . . . . . . . . . . . . . . . . . . 6 . 1 22 . Distress Signals 29 | . . . . . . . . . . . . . . . . . . . . . . . . . . . . . . . . 6 . 1 22 . Times Spotted 505 | . 27 47 3 . 6 19 38 5 . 30 . 71 8 6 . 4 34 6 29 3 5 . 7 3 4 8 23 5 6 29 4 23 . 21 15 16 Peak Tracking Total 24 | . 4 4 3 . 3 4 7 3 . 12 . 15 6 3 . 2 19 6 11 3 5 . 5 2 4 5 4 5 1 24 7 8 . 9 4 13 Tactical Retreats 70 | . 2 1 . . . . 1 . . 7 . 21 3 2 . . 3 . 9 2 . . 2 1 . 1 2 . . 1 1 5 . 2 3 1 ID Masks Used 1 | . . . . . . . . . . . . . . . . . . . . . . . . . . . . . . . . . . 1 . . IFF Responses 50 | . . . . . . . . . . . . . . . . . . . . . . . . . . . . . . . . . . 50 . . Traps | -11 -10 -9 -9 -9 -8 -8 -8 -8 -8 -6 -6 -6 -6 -6 -6 -5 -5 -5 -5 -5 -5 -5 -4 -4 -4 -4 -4 -4 -4 -4 -3 -3 -3 -2 -2 -2 ------- Run | Yrd Mat Mat Min Exi Min Mat Sto Rec Scr Fac Was Fac Low Low Zio Pro Fac Was Fac Upp Upp Zhi Pro Fac Was Fac Ext Cet Arc Hub Res Arm Lab Res Qua Frg Traps Triggered 15 | . . 2 . . . . . . . 3 . 2 . . . . 1 . 1 . . . . 1 . 1 2 . . . . 1 . 1 . . Indirectly . | . . . . . . . . . . . . . . . . . . . . . . . . . . . . . . . . . . . . . Trap Hack Attempts . | . . . . . . . . . . . . . . . . . . . . . . . . . . . . . . . . . . . . . Triggered . | . . . . . . . . . . . . . . . . . . . . . . . . . . . . . . . . . . . . . Disarmed . | . . . . . . . . . . . . . . . . . . . . . . . . . . . . . . . . . . . . . Reprogrammed 2 | . . . . . . . . . . . . . . . . . . . . . . . . . . . . . . . 2 . . . . . Reused 1 | . . . . . . . . . . . . 1 . . . . . . . . . . . . . . . . . . . . . . . . Traps Extracted . | . . . . . . . . . . . . . . . . . . . . . . . . . . . . . . . . . . . . . Installed 1 | . . . . . . . . . . . . 1 . . . . . . . . . . . . . . . . . . . . . . . . Triggered 1 | . . . . . . . . . . . . 1 . . . . . . . . . . . . . . . . . . . . . . . . Most Traps Carried 1 | . . . . . . . . . 1 1 1 1 . . . . . . . . . . . . . . . . . . . . . . . . Machines | -11 -10 -9 -9 -9 -8 -8 -8 -8 -8 -6 -6 -6 -6 -6 -6 -5 -5 -5 -5 -5 -5 -5 -4 -4 -4 -4 -4 -4 -4 -4 -3 -3 -3 -2 -2 -2 ---------- Run | Yrd Mat Mat Min Exi Min Mat Sto Rec Scr Fac Was Fac Low Low Zio Pro Fac Was Fac Upp Upp Zhi Pro Fac Was Fac Ext Cet Arc Hub Res Arm Lab Res Qua Frg Machines Disabled 30 | . 1 . . . . 1 2 . . 1 . 5 . . . . . . . . . . . . . 2 2 . 1 1 1 6 1 1 5 . Max in Single Turn 4 | . 1 . . . . 1 1 . . 1 . 4 . . . . . . . . . . . . . 1 . . . . 1 1 1 1 1 . Garrison Access 4 | . . . . . . . . . . . . 1 . . . . 1 . . . . . . . . . . . . 1 1 . . . . . Network Hub 2 | . . . . . . . . . . . . . . . . . . . . . . . . . . . . . . 2 . . . . . . Energy Cycler 1 | . . . . . . . . . . . . . . . . . . . . . . . . . . . 1 . . . . . . . . . Machines Repaired . | . . . . . . . . . . . . . . . . . . . . . . . . . . . . . . . . . . . . . Machines Dismantled . | . . . . . . . . . . . . . . . . . . . . . . . . . . . . . . . . . . . . . Machines Sabotaged 2 | . . . . . . . . . . . . . . . . . . . . . . . . . . . . . . 2 . . . . . . Overloaded Fab Kills . | . . . . . . . . . . . . . . . . . . . . . . . . . . . . . . . . . . . . . Hacking | -11 -10 -9 -9 -9 -8 -8 -8 -8 -8 -6 -6 -6 -6 -6 -6 -5 -5 -5 -5 -5 -5 -5 -4 -4 -4 -4 -4 -4 -4 -4 -3 -3 -3 -2 -2 -2 --------- Run | Yrd Mat Mat Min Exi Min Mat Sto Rec Scr Fac Was Fac Low Low Zio Pro Fac Was Fac Upp Upp Zhi Pro Fac Was Fac Ext Cet Arc Hub Res Arm Lab Res Qua Frg Machines Accessed 157 | . 7 11 . 1 . 3 10 10 4 12 . 17 1 1 . . 6 . 15 . . 4 . 9 . 10 3 . . 6 10 8 . 2 2 5 Terminals 90 | . 6 7 . . . 1 9 6 . 10 . 7 . . . . . . 10 . . . . 6 . 6 3 . . 6 5 6 . . 1 1 Fabricators 7 | . . . . . . . . . . . . 2 . . . . 1 . 1 . . . . . . 1 . . . . . 2 . . . . Repair Stations 9 | . . 1 . . . . . . . . . 2 . . . . . . 2 . . . . 1 . 1 . . . . 1 . . . 1 . Recycling Units 26 | . 1 2 . . . 1 1 4 . . . 3 . . . . 3 . 1 . . . . 2 . 2 . . . . 2 . . 1 . 3 Scanalyzers 11 | . . 1 . . . 1 . . . 2 . 2 . . . . 1 . 1 . . . . . . . . . . . 1 . . 1 . 1 Garrison Access 3 | . . . . . . . . . . . . 1 . . . . 1 . . . . . . . . . . . . . 1 . . . . . Total Hacks 491 | . 28 32 . 1 . 8 35 28 22 32 . 42 1 1 . . 13 . 34 . . 17 . 30 . 28 8 . . 13 51 41 . 6 5 15 Successful 275 | . 13 19 . 1 . 5 20 15 22 14 . 23 1 1 . . 8 . 17 . . 17 . 14 . 14 6 . . 9 25 23 . 4 1 3 Failed 211 | . 15 12 . . . 3 15 12 . 18 . 19 . . . . 5 . 16 . . . . 16 . 14 2 . . 4 25 18 . 1 4 12 Catastrophic 34 | . 3 . . . . 1 2 3 . 6 . 4 . . . . 1 . 3 . . . . 2 . 3 . . . . 1 1 . . . 4 Database Lockouts 5 | . . 1 . . . . . 1 . . . . . . . . . . 1 . . . . . . . . . . . 1 . . 1 . . Manual 194 | . 24 18 . . . 3 9 22 . 23 . 9 . . . . 6 . 12 . . . . 15 . 14 1 . . 7 10 10 . 2 . 9 Terminals 332 | . 27 24 . . . 4 30 23 . 29 . 14 . . . . . . 25 . . . . 25 . 23 8 . . 13 41 38 . . 3 5 Fabricators 21 | . . . . . . . . . . . . 10 . . . . 3 . 3 . . . . . . 2 . . . . . 3 . . . . Repair Stations 19 | . . 2 . . . . . . . . . 5 . . . . . . 2 . . . . 3 . 1 . . . . 4 . . . 2 . Recycling Units 43 | . 1 2 . . . 2 5 5 . . . 4 . . . . 5 . 2 . . . . 2 . 2 . . . . 2 . . 2 . 9 Scanalyzers 29 | . . 4 . . . 2 . . . 3 . 7 . . . . 4 . 2 . . . . . . . . . . . 2 . . 4 . 1 Garrison Access 5 | . . . . . . . . . . . . 2 . . . . 1 . . . . . . . . . . . . . 2 . . . . . Terminal Hacks 149 | . 3 6 . 1 . 2 14 5 22 10 . 2 1 1 . . . . 9 . . 17 . 7 . 5 5 . . 4 19 15 . . . 1 Record 29 | . . . . 1 . . . . 21 . . . . . . . . . . . . 5 . . . . . . . . . 2 . . . . Part Schematic 8 | . . . . . . . . 2 . 1 . 1 . . . . . . . . . 4 . . . . . . . . . . . . . . Robot Analysis 5 | . 1 . . . . . . . . . . . . . . . . . . . . 4 . . . . . . . . . . . . . . Prototype ID Bank 22 | . . 2 . . . . 3 . . 1 . . . . . . . . 2 . . 4 . 1 . . 1 . . . 4 4 . . . . Open Door 7 | . . . . . . . 3 . . . . . 1 1 . . . . . . . . . . . 1 1 . . . . . . . . . Level Access Points 1 | . . . . . . . . . . . . . . . . . . . . . . . . . . . . . . 1 . . . . . . Branch Access Points 8 | . . 1 . . . . . 1 . 1 . 1 . . . . . . 1 . . . . 1 . 1 . . . . 1 . . . . . Emergency Access Points 2 | . . . . . . . . . . . . . . . . . . . . . . . . 1 . . . . . . 1 . . . . . Terminal Index 3 | . . . . . . . . . . . . . . . . . . . 1 . . . . . . . . . . . 1 1 . . . . Recycling Unit Index 3 | . . . . . . . . . . . . . . . . . . . . . . . . 1 . . . . . 1 1 . . . . . Scanalyzer Index 2 | . . . . . . . . 1 . . . . . . . . . . . . . . . . . . . . . . 1 . . . . . Alert Level 2 | . . . . . . 1 1 . . . . . . . . . . . . . . . . . . . . . . . . . . . . . Unreport Threat 8 | . . 1 . . . 1 1 . . . . . . . . . . . . . . . . 1 . . . . . 1 2 1 . . . . Locate Traps 19 | . 1 1 . . . . 1 . . 3 . . . . . . . . 3 . . . . 2 . 1 1 . . . 2 4 . . . . Reprogram Traps 2 | . . . . . . . . . . . . . . . . . . . . . . . . . . . . . . . 2 . . . . . Security Status 2 | . . . . . . . . 1 . . . . . . . . . . . . . . . . . . 1 . . . . . . . . . Patrol Status 1 | . . . . . . . . . . 1 . . . . . . . . . . . . . . . . . . . . . . . . . . Recall Investigation 3 | . . . . . . . . . . 1 . . . . . . . . 1 . . . . . . . . . . . 1 . . . . . Hauler Manifests 4 | . . 1 . . . . 2 . . 1 . . . . . . . . . . . . . . . . . . . . . . . . . . Registered Components 3 | . 1 . . . . . . . . . . . . . . . . . . . . . . . . 1 . . . . 1 . . . . . Registered Prototypes 1 | . . . . . . . . . . . . . . . . . . . 1 . . . . . . . . . . . . . . . . . Zone Layout 13 | . . . . . . . 3 . . 1 . . . . . . . . . . . . . . . 1 1 . . 1 2 3 . . . 1 Proto ID Catalog 1 | . . . . . . . . . 1 . . . . . . . . . . . . . . . . . . . . . . . . . . . Fabricator Hacks 15 | . . . . . . . . . . . . 7 . . . . 2 . 1 . . . . . . 2 . . . . . 3 . . . . Network Status 2 | . . . . . . . . . . . . . . . . . . . . . . . . . . 1 . . . . . 1 . . . . Load Schematic 8 | . . . . . . . . . . . . 4 . . . . 1 . 1 . . . . . . 1 . . . . . 1 . . . . Build 5 | . . . . . . . . . . . . 3 . . . . 1 . . . . . . . . . . . . . . 1 . . . . Repair Station Hacks 9 | . . 2 . . . . . . . . . 3 . . . . . . . . . . . 1 . 1 . . . . 1 . . . 1 . Scan Component 3 | . . 1 . . . . . . . . . 2 . . . . . . . . . . . . . . . . . . . . . . . . Repair 2 | . . 1 . . . . . . . . . 1 . . . . . . . . . . . . . . . . . . . . . . . . Refit 4 | . . . . . . . . . . . . . . . . . . . . . . . . 1 . 1 . . . . 1 . . . 1 . Recycling Unit Hacks 3 | . . 1 . . . 1 1 . . . . . . . . . . . . . . . . . . . . . . . . . . . . . Retrieve Components 3 | . . 1 . . . 1 1 . . . . . . . . . . . . . . . . . . . . . . . . . . . . . Scanalyzer 21 | . . 3 . . . 2 . . . 2 . 6 . . . . 2 . 1 . . . . . . . . . . . 1 . . 3 . 1 Insert Component 1 | . . . . . . . . . . . . 1 . . . . . . . . . . . . . . . . . . . . . . . . Analyze 2 | . . . . . . . . . . . . 2 . . . . . . . . . . . . . . . . . . . . . . . . Retrieve Study 18 | . . 3 . . . 2 . . . 2 . 3 . . . . 2 . 1 . . . . . . . . . . . 1 . . 3 . 1 Garrison Access Hacks 3 | . . . . . . . . . . . . 1 . . . . 1 . . . . . . . . . . . . . 1 . . . . . Seal Access 3 | . . . . . . . . . . . . 1 . . . . 1 . . . . . . . . . . . . . 1 . . . . . Unauthorized Hacks 75 | . 10 7 . . . . 5 10 . 2 . 4 . . . . 3 . 6 . . . . 6 . 6 1 . . 5 3 5 . 1 . 1 Terminals 50 | . 9 6 . . . . 4 6 . 2 . . . . . . . . 3 . . . . 4 . 4 1 . . 5 1 5 . . . . Track 2 | . . . . . . . . . . . . . . . . . . . . . . . . . . . . . . . . 2 . . . . Assimilate 5 | . . . . . . . . . . 1 . . . . . . . . . . . . . 2 . 1 1 . . . . . . . . . Botnet 15 | . 2 . . . . . . 2 . 1 . . . . . . . . 3 . . . . 1 . 3 . . . 1 1 1 . . . . Detonate 1 | . . . . . . . . . . . . . . . . . . . . . . . . . . . . . . . . 1 . . . . Disrupt 1 | . . . . . . . . . . . . . . . . . . . . . . . . . . . . . . . . 1 . . . . Operators 4 | . 1 1 . . . . . . . . . . . . . . . . . . . . . 1 . . . . . 1 . . . . . . Skim 19 | . 6 5 . . . . 4 4 . . . . . . . . . . . . . . . . . . . . . . . . . . . . Sabotage 3 | . . . . . . . . . . . . . . . . . . . . . . . . . . . . . . 3 . . . . . . Fabricators 2 | . . . . . . . . . . . . 1 . . . . 1 . . . . . . . . . . . . . . . . . . . Prioritize 1 | . . . . . . . . . . . . . . . . . 1 . . . . . . . . . . . . . . . . . . . Recompile 1 | . . . . . . . . . . . . 1 . . . . . . . . . . . . . . . . . . . . . . . . Repair Stations 2 | . . . . . . . . . . . . . . . . . . . 2 . . . . . . . . . . . . . . . . . Patch 2 | . . . . . . . . . . . . . . . . . . . 2 . . . . . . . . . . . . . . . . . Recycling Units 21 | . 1 1 . . . . 1 4 . . . 3 . . . . 2 . 1 . . . . 2 . 2 . . . . 2 . . 1 . 1 Reject 1 | . . . . . . . 1 . . . . . . . . . . . . . . . . . . . . . . . . . . . . . Tunnel 6 | . 1 1 . . . . . 4 . . . . . . . . . . . . . . . . . . . . . . . . . . . . Fedlink 14 | . . . . . . . . . . . . 3 . . . . 2 . 1 . . . . 2 . 2 . . . . 2 . . 1 . 1 Scanalyzers . | . . . . . . . . . . . . . . . . . . . . . . . . . . . . . . . . . . . . . Garrison Access . | . . . . . . . . . . . . . . . . . . . . . . . . . . . . . . . . . . . . . Data Cores Recovered 2 | . . . . . . . . . . . . 1 . . . . . . . . . . . . . 1 . . . . . . . . . . Used . | . . . . . . . . . . . . . . . . . . . . . . . . . . . . . . . . . . . . . Hacking Detections 106 | . 5 7 . . . 2 8 6 . 12 . 10 . . . . 4 . 12 . . . . 7 . 6 2 . . 4 7 6 . 2 1 5 Full Trace Events 21 | . 1 1 . . . . . 2 . 6 . 1 . . . . 2 . 3 . . . . . . 1 . . . . 1 . . . . 3 Feedback Events 3 | . . . . . . . . . . . . . . . . . 1 . . . . . . . . . . . . . . . . . . 2 Corruption 3 | . . . . . . . . . . . . . . . . . 1 . . . . . . . . . . . . . . . . . . 2 Feedback Blocked . | . . . . . . . . . . . . . . . . . . . . . . . . . . . . . . . . . . . . . Robot Schematics Acquired 1 | . . . . . . . . . . . . . . . . . . . . . . . . . . . . . . . . . . . 1 . Robots Built . | . . . . . . . . . . . . . . . . . . . . . . . . . . . . . . . . . . . . . Authchips . | . . . . . . . . . . . . . . . . . . . . . . . . . . . . . . . . . . . . . Time . | . . . . . . . . . . . . . . . . . . . . . . . . . . . . . . . . . . . . . Total Robot Build Rating . | . . . . . . . . . . . . . . . . . . . . . . . . . . . . . . . . . . . . . Part Schematics Acquired 13 | . . . . . . . . 2 . 1 . 2 . . . . . . . . . 4 . . . . . . . . . . . . 4 . Parts Built 4 | . . . . . . . . . . . . 3 . . . . 1 . . . . . . . . . . . . . . . . . . . Authchips 5 | . . . . . . . . . . . . 3 . . . . 1 . . . . . . . . . . . . . . 1 . . . . Time 253 | . . . . . . . . . . . . 119 . . . . 67 . . . . . . . . . . . . . . 67 . . . . Total Part Build Rating 17 | . . . . . . . . . . . . 13 . . . . 4 . . . . . . . . . . . . . . . . . . . Part Studies Acquired 18 | . . 3 . . . 2 . . . 2 . 3 . . . . 2 . 1 . . . . . . . . . . . 1 . . 3 . 1 Parts Repaired 2 | . . 1 . . . . . . . . . 1 . . . . . . . . . . . . . . . . . . . . . . . . Time 112 | . . 26 . . . . . . . . . 86 . . . . . . . . . . . . . . . . . . . . . . . . Parts Recycled . | . . . . . . . . . . . . . . . . . . . . . . . . . . . . . . . . . . . . . Recycled Matter . | . . . . . . . . . . . . . . . . . . . . . . . . . . . . . . . . . . . . . Retrieved Matter . | . . . . . . . . . . . . . . . . . . . . . . . . . . . . . . . . . . . . . Retrieved Components 22 | . . 10 . . . 2 10 . . . . . . . . . . . . . . . . . . . . . . . . . . . . . Parts Scanalyzed 1 | . . . . . . . . . . . . 1 . . . . . . . . . . . . . . . . . . . . . . . . Part Schematics Acquired 1 | . . . . . . . . . . . . 1 . . . . . . . . . . . . . . . . . . . . . . . . Parts Damaged . | . . . . . . . . . . . . . . . . . . . . . . . . . . . . . . . . . . . . . Bothacking | -11 -10 -9 -9 -9 -8 -8 -8 -8 -8 -6 -6 -6 -6 -6 -6 -5 -5 -5 -5 -5 -5 -5 -4 -4 -4 -4 -4 -4 -4 -4 -3 -3 -3 -2 -2 -2 ------------ Run | Yrd Mat Mat Min Exi Min Mat Sto Rec Scr Fac Was Fac Low Low Zio Pro Fac Was Fac Upp Upp Zhi Pro Fac Was Fac Ext Cet Arc Hub Res Arm Lab Res Qua Frg Used RIF Installer . | . . . . . . . . . . . . . . . . . . . . . . . . . . . . . . . . . . . . . Robots Hacked 4 | . . . . . . . . . . 1 . . . . . . . . . . . . . . . . . . . . . 1 . . 2 . Non-combat 1 | . . . . . . . . . . 1 . . . . . . . . . . . . . . . . . . . . . . . . . . Combat . | . . . . . . . . . . . . . . . . . . . . . . . . . . . . . . . . . . . . . Robot Hacks Applied 1 | . . . . . . . . . . 1 . . . . . . . . . . . . . . . . . . . . . . . . . . find_chute 1 | . . . . . . . . . . 1 . . . . . . . . . . . . . . . . . . . . . . . . . . Manual 3 | . . . . . . . . . . . . . . . . . . . . . . . . . . . . . . . . 1 . . 2 . Relay Couplers Released 1 | . . . . . . . . . . . . . . . . . . . . . . . . . . . . . . 1 . . . . . . Machine Destruction 1 | . . . . . . . . . . . . . . . . . . . . . . . . . . . . . . 1 . . . . . . Fabnet Peak Effective % . | . . . . . . . . . . . . . . . . . . . . . . . . . . . . . . . . . . . . . Robots Rewired 24 | . . . . . . . . 7 . . . . . . . . . . . . . . . 2 . . 11 . . . . 4 . . . . Allies Hacked . | . . . . . . . . . . . . . . . . . . . . . . . . . . . . . . . . . . . . . Hacks Repelled . | . . . . . . . . . . . . . . . . . . . . . . . . . . . . . . . . . . . . . Allies | -11 -10 -9 -9 -9 -8 -8 -8 -8 -8 -6 -6 -6 -6 -6 -6 -5 -5 -5 -5 -5 -5 -5 -4 -4 -4 -4 -4 -4 -4 -4 -3 -3 -3 -2 -2 -2 -------- Run | Yrd Mat Mat Min Exi Min Mat Sto Rec Scr Fac Was Fac Low Low Zio Pro Fac Was Fac Upp Upp Zhi Pro Fac Was Fac Ext Cet Arc Hub Res Arm Lab Res Qua Frg Total Allies 39 | . . . . . . . . 7 . 1 . . . . 5 . . . . . . . . 3 . 1 18 . . . . 4 . . . . Largest Group 11 | . . . . . . . . 7 6 3 . . . . 5 5 . . . . . . . 3 . 3 11 8 6 5 . 4 . . . . Highest-Rated Group 420 | . . . . . . . . 122 88 41 . . . . 132 132 . . . . . . . 139 . 99 420 307 235 206 . 224 . . . . Highest-Rated Ally 64 | . . . . . . . . 34 21 26 . . . . 31 31 . . . . . . . 64 . 49 51 51 51 51 . 56 . . . . Total Orders 9 | . . . . . . . . 1 7 . . . . . . . . . . . . . . . . . 1 . . . . . . . . . STAY 5 | . . . . . . . . . 4 . . . . . . . . . . . . . . . . . 1 . . . . . . . . . ROAM 1 | . . . . . . . . 1 . . . . . . . . . . . . . . . . . . . . . . . . . . . . FOLLOW 3 | . . . . . . . . . 3 . . . . . . . . . . . . . . . . . . . . . . . . . . . Ally Attacks 225 | . . . . . . . . 16 . 2 . . . . . 20 . . . . . . . . . 3 93 12 13 20 . 46 . . . . Total Damage 5820 | . . . . . . . . 154 . 65 . . . . . 526 . . . . . . . . . 142 2265 389 367 491 . 1421 . . . . Kills 37 | . . . . . . . . 2 . . . . . . . 5 . . . . . . . . . . 13 4 3 4 . 6 . . . . Allies Corrupted 2 | . . . . . . . . . 1 . . . . . . 1 . . . . . . . . . . . . . . . . . . . . Allies Melted 2 | . . . . . . . . . . . . . . . . . . . . . . . . . . . 1 . . . . 1 . . . . Intel | -11 -10 -9 -9 -9 -8 -8 -8 -8 -8 -6 -6 -6 -6 -6 -6 -5 -5 -5 -5 -5 -5 -5 -4 -4 -4 -4 -4 -4 -4 -4 -3 -3 -3 -2 -2 -2 ------- Run | Yrd Mat Mat Min Exi Min Mat Sto Rec Scr Fac Was Fac Low Low Zio Pro Fac Was Fac Upp Upp Zhi Pro Fac Was Fac Ext Cet Arc Hub Res Arm Lab Res Qua Frg Active Infowar (turns) 8032 | . . . . . . . . . . 642 80 933 442 249 797 631 200 22 469 109 98 76 14 215 20 111 1000 143 203 102 291 349 6 462 368 . Sensors 4548 | . . . . . . . . . . . . 631 426 . . . 14 22 463 109 98 76 1 161 20 111 1000 143 203 102 291 349 5 323 . . IFF 357 | . . . . . . . . . . 42 . . . . . . . . . . . . 13 212 20 70 . . . . . . . . . . Terrain 201 | . . . . . . . . . . . . . . . . . . . . . . . . . . . . . . . . . . 94 107 . Seismic 988 | . . . . . . . . . . 600 80 308 . . . . . . . . . . . . . . . . . . . . . . . . Decoding 2846 | . . . . . . . . . . . . . 238 249 797 631 200 22 469 109 98 33 . . . . . . . . . . . . . . Cloaking 306 | . . . . . . . . . . . . . . . . . . . . . . . . . . . . . . . . 1 1 304 . . Jamming 1103 | . . . . . . . . . . . . . . . . . . . . . . . . . . . . . . . . 268 5 462 368 . ID Mask 39 | . . . . . . . . . . . . . . . . . . . . . . . . . . . . . . . . . . 39 . . Robot Analysis Total 5 | . 1 . . . . . . . . . . . . . . . . . . . . 4 . . . . . . . . . . . . . . Derelict Logs Recovered 9 | . . . . . . . . . . . . . 1 1 1 2 . . . 1 1 . 2 . . . . . . . . . . . . . Drone Launches . | . . . . . . . . . . . . . . . . . . . . . . . . . . . . . . . . . . . . . Drone Recoveries . | . . . . . . . . . . . . . . . . . . . . . . . . . . . . . . . . . . . . . Decoded 0b10 Intel 13 | . . . . . . . . . . . . . . . . . 5 . 8 . . . . . . . . . . . . . . . . . Traps 9 | . . . . . . . . . . . . . . . . . 3 . 6 . . . . . . . . . . . . . . . . . Emergency Access 2 | . . . . . . . . . . . . . . . . . 1 . 1 . . . . . . . . . . . . . . . . . Garrisons 2 | . . . . . . . . . . . . . . . . . 1 . 1 . . . . . . . . . . . . . . . . . Exploration | -11 -10 -9 -9 -9 -8 -8 -8 -8 -8 -6 -6 -6 -6 -6 -6 -5 -5 -5 -5 -5 -5 -5 -4 -4 -4 -4 -4 -4 -4 -4 -3 -3 -3 -2 -2 -2 ------------- Run | Yrd Mat Mat Min Exi Min Mat Sto Rec Scr Fac Was Fac Low Low Zio Pro Fac Was Fac Upp Upp Zhi Pro Fac Was Fac Ext Cet Arc Hub Res Arm Lab Res Qua Frg Turns Passed 19043 | 4 1300 2109 118 296 784 772 1446 1163 2271 659 80 1161 442 249 797 631 200 22 469 109 98 76 87 215 20 111 1000 143 203 102 291 349 148 463 430 225 Spaces Moved 22186 | 1 925 1050 64 186 432 373 670 674 1688 1488 285 2437 872 666 901 655 639 82 1256 305 325 203 321 592 83 292 1024 102 54 301 812 662 240 695 518 313 Core 127 | . . . . . . . . . . . . . . . . . . . . . . . . . . . . . . . . 5 . 1 . 121 Treads 4448 | . . 1034 64 186 432 373 670 674 1015 . . . . . . . . . . . . . . . . . . . . . . . . . . . Legs . | . . . . . . . . . . . . . . . . . . . . . . . . . . . . . . . . . . . . . Wheels 1397 | 1 925 16 . . . . . . . . . . . . . . . . . . . . . . . . . . . . . . . . 263 192 Hover . | . . . . . . . . . . . . . . . . . . . . . . . . . . . . . . . . . . . . . Flight 16214 | . . . . . . . . . 673 1488 285 2437 872 666 901 655 639 82 1256 305 325 203 321 592 83 292 1024 102 54 301 812 657 240 694 255 . Fastest Speed 11 | 100 95 105 160 160 160 156 152 152 29 27 27 23 28 26 26 26 24 24 23 26 26 24 11 24 21 21 21 21 24 11 25 16 26 26 34 50 Average Speed 61 | 100 104 159 160 160 160 157 157 152 128 27 27 27 34 26 82 26 25 24 25 26 26 24 23 24 21 21 21 23 24 23 25 26 26 29 59 65 Slowest Speed 220 | 100 115 220 160 160 160 200 200 152 152 99 27 100 95 95 96 96 88 24 26 26 26 26 24 24 24 21 97 24 24 24 103 200 26 168 95 85 Overloaded Moves 57 | . . . . . . . . . . . . 15 . . . . . . . . . . 4 . . . . . . 20 . 18 . . . . Propulsion Burnouts . | . . . . . . . . . . . . . . . . . . . . . . . . . . . . . . . . . . . . . Robots Hopped 57 | . . . . . . . . . . 4 1 18 . . . . 6 . 13 . . . . 6 . . 2 . . 6 1 . . . . . Potential Cave-ins . | . . . . . . . . . . . . . . . . . . . . . . . . . . . . . . . . . . . . . Cave-ins Triggered . | . . . . . . . . . . . . . . . . . . . . . . . . . . . . . . . . . . . . . Teleports 2 | . . . . . . . . . . . . . . . . . . . . . . . . . . . . . . . . 1 . 1 . . Exploration Rate (%) 56 | 1 96 89 13 56 95 32 83 96 87 43 84 52 92 76 84 85 20 75 35 56 51 60 55 15 75 9 87 48 70 29 20 49 92 15 45 23 Regions Visited 36 Branch Regions 22 Pre-discovered Areas 18 | . 1 2 . 1 . . . 4 . . . 1 . . 3 1 . . . . . 3 2 . . . . . . . . . . . . . Known Exits Taken 23 | . . 1 . . 1 1 . . . . . 1 1 1 1 1 . . 1 1 1 1 1 . . 1 1 1 1 1 1 1 1 1 1 . Unknown Exits Taken 7 | 1 1 . 1 1 . . 1 1 1 . . . . . . . . . . . . . . . . . . . . . . . . . . . Scrap Searched 34 | . . . 1 . 1 . . . 9 . . . 3 4 4 3 . . . 4 3 . 2 . . . . . . . . . . . . . Spaces Dug 187 | . 2 2 . . . . . . . 43 . 23 4 27 . . 3 . 22 2 . . . 4 . 1 . . . . 14 17 . 18 3 2 Terrain Destroyed 416 | . 10 2 24 . . . 11 . . 43 . 109 32 27 . . 3 . 22 2 12 . . 10 . 1 50 . . . 15 18 . 20 3 2 Melee 114 | . . 2 . . . . . . . 29 . 23 4 3 . . 3 . 19 2 . . . 4 . 1 . . . . 1 9 . 9 3 2 Projectile 40 | . 3 . . . . . . . . . . . . . . . . . 3 . . . . . . . . . . . 14 9 . 11 . . AOE 262 | . 7 . 24 . . . 11 . . 14 . 86 28 24 . . . . . . 12 . . 6 . . 50 . . . . . . . . . Terrain Rammed . | . . . . . . . . . . . . . . . . . . . . . . . . . . . . . . . . . . . . . Walls Destroyed . | . . . . . . . . . . . . . . . . . . . . . . . . . . . . . . . . . . . . . Machines Disabled . | . . . . . . . . . . . . . . . . . . . . . . . . . . . . . . . . . . . . . Actions | -11 -10 -9 -9 -9 -8 -8 -8 -8 -8 -6 -6 -6 -6 -6 -6 -5 -5 -5 -5 -5 -5 -5 -4 -4 -4 -4 -4 -4 -4 -4 -3 -3 -3 -2 -2 -2 --------- Run | Yrd Mat Mat Min Exi Min Mat Sto Rec Scr Fac Was Fac Low Low Zio Pro Fac Was Fac Upp Upp Zhi Pro Fac Was Fac Ext Cet Arc Hub Res Arm Lab Res Qua Frg Total 26291 | 4 1126 1305 71 185 470 479 881 786 1788 1664 286 2801 1002 726 955 1102 661 83 1351 330 337 225 328 640 84 326 1725 219 229 315 884 797 312 915 578 321 Wait 2593 | . 67 79 . . 3 17 36 49 50 90 . 283 104 36 38 435 11 . 56 19 . . 2 17 . 16 585 115 158 13 25 72 48 158 10 1 Move 22045 | . 924 1049 63 185 431 372 669 673 1687 1480 282 2402 871 665 900 654 627 81 1229 304 324 202 320 582 82 291 1019 101 53 290 809 661 239 694 517 313 Hop 51 | . . . . . . . . . . 4 1 16 . . . . 6 . 13 . . . . 4 . . 2 . . 4 1 . . . . . Pick Up 152 | . 22 27 . . 1 11 9 3 12 7 1 9 . 5 5 2 2 2 3 1 2 2 . 3 . 2 4 1 . . 7 2 3 2 2 . Fast Attach 127 | . 2 9 . . 2 6 6 2 5 5 . 9 1 3 3 2 2 . 6 2 1 9 3 4 1 4 5 1 2 . 4 7 4 9 6 2 Attach 85 | 2 4 1 . . . 4 4 . 4 9 . 6 8 5 1 . 4 . 1 1 3 1 . 4 . 1 6 1 . . 4 1 3 5 2 . Detach 38 | . . . . . . . . . 1 6 . 2 8 1 . . . . 1 . 2 . . 2 . . 5 . . . 2 . 2 4 2 . Swap 130 | . 15 18 3 . 1 7 21 3 5 3 1 15 . 1 . 1 1 . 5 . . 1 . 4 . . 4 . 4 . 4 6 3 4 . . Drop 229 | 2 19 28 . . 4 20 19 4 20 7 1 7 . 3 8 4 2 . 8 1 3 9 2 8 1 5 6 . 2 . 11 9 3 8 5 . Fire 464 | . 61 91 5 . 28 42 110 21 . 3 . 10 3 2 . . . . 3 . 2 . . 4 . . 26 . 4 . 14 19 . 14 2 . Melee 299 | . 12 3 . . . . 7 . 4 38 . 41 7 5 . 4 6 . 26 2 . 1 1 8 . 7 33 . 6 8 3 16 7 17 32 5 Ram . | . . . . . . . . . . . . . . . . . . . . . . . . . . . . . . . . . . . . . Kick . | . . . . . . . . . . . . . . . . . . . . . . . . . . . . . . . . . . . . . Crush 2 | . . . . . . . . 2 . . . . . . . . . . . . . . . . . . . . . . . . . . . . Escape Stasis 46 | . . . . . . . . . . 12 . . . . . . . . . . . . . . . . 30 . . . . 4 . . . . Rewire 29 | . . . . . . . . 29 . . . . . . . . . . . . . . . . . . . . . . . . . . . . Trap 1 | . . . . . . . . . . . . 1 . . . . . . . . . . . . . . . . . . . . . . . . Miscellaneous . | . . . . . . . . . . . . . . . . . . . . . . . . . . . . . . . . . . . . . Route ------- -11/Scrapyard -10/Materials (discovered 4 exits: *Mat x3 / [*Min]) -9/Materials (discovered 4 exits: *Mat x3 / *Min) -9/Mines -9/Exiles -8/Mines -8/Materials -8/Storage (discovered 2 exits: [*Fac] / *Rec) -8/Recycling (discovered 2 exits: *Fac / *Scr) -8/Scraptown (discovered 2 exits: *Fac x2) -6/Factory (discovered 2 exits: Low x2) -6/Waste -6/Factory (discovered 3 exits: *Fac / *Low x2) -6/Lower Caves -6/Lower Caves (discovered 2 exits: *Fac / *Zio) -6/Zion -5/Proximity Caves -5/Factory (discovered 2 exits: Fac / *Upp) -5/Waste -5/Factory (discovered 3 exits: *Fac / *Upp x2) -5/Upper Caves -5/Upper Caves (discovered 2 exits: *Fac / *Zhi) -5/Zhirov -4/Proximity Caves -4/Factory (discovered 4 exits: *Upp x2 / Ext x2) -4/Waste -4/Factory (discovered 4 exits: Upp x2 / *Ext x2) -4/Extension (discovered 3 exits: *Res x2 / *Cet) -4/Cetus -4/Archives -4/Hub_04(d) (discovered 4 exits: *Res x4) -3/Research (discovered 3 exits: *Arm / Tes x2) -3/Armory -3/Lab -2/Research -2/Quarantine (discovered 2 exits: [*Sec] / *Frg) -2/Protoforge History --------- Turn | Location | Event 5 | -11/Scrapyard | Discovered new exit (range 0) 5 | -11/Scrapyard | Entered Materials 151 | -10/Materials | Discovered new exit (range 16) 205 | -10/Materials | Core integrity fell below 50% 301 | -10/Materials | Discovered new exit (range 11) 306 | -10/Materials | Build established: Mutant 663 | -10/Materials | Discovered new exit (range 16) 998 | -10/Materials | Discovered new exit (range 16) 1305 | -10/Materials | Entered another Materials area 1305 | -9/Materials | Evolved 2 slots: Propulsion x1, Utility x1 1321 | -9/Materials | Central database locked down 1618 | -9/Materials | Discovered new exit (range 6) 2162 | -9/Materials | Discovered new exit (range 14) 2228 | -9/Materials | Identified exit to Mines 2709 | -9/Materials | Identified exit to Materials 2823 | -9/Materials | Loaded intel: 2 repair station locations 2849 | -9/Materials | Learned Storage trap positions 2874 | -9/Materials | Loaded intel: 7 trap records 2965 | -9/Materials | Repaired Lgt. Treads+ 3414 | -9/Materials | Entered Mines 3524 | -9/Mines | Deemed a non-threat by the Exiles lab entrance 3525 | -9/Mines | Discovered new exit (range 5) 3532 | -9/Mines | Entered Exiles 3576 | -9/Exiles | Met 8R-AWN 3600 | -9/Exiles | Met EX-HEX 3660 | -9/Exiles | Met EX-DEC 3753 | -9/Exiles | Learned location of Zion (-6) 3812 | -9/Exiles | Discovered new exit (range 10) 3828 | -9/Exiles | Entered Mines 4599 | -8/Mines | Discovered exit to Materials (range 4) 4612 | -8/Mines | Entered Materials 4612 | -8/Materials | Evolved 2 slots: Propulsion x1, Utility x1 5039 | -8/Materials | Build established: Scavenger-Mutant 5255 | -8/Materials | Discovered new exit (range 15) 5328 | -8/Materials | Garrison activated, responded to threat 5376 | -8/Materials | Identified exit to Storage 5384 | -8/Materials | Entered Storage 5385 | -8/Storage | Loaded intel: 21 trap records 5610 | -8/Storage | Destroyed 7 combat bots 5913 | -8/Storage | Used back door to open Recycling access 5913 | -8/Storage | Discovered new exit (range 4) 5926 | -8/Storage | Found Prototype Protection 5926 | -8/Storage | Identified Lgt. Regenerative Plating 6192 | -8/Storage | Discovered new exit (range 8) 6541 | -8/Storage | Garrison activated, responded to threat 6830 | -8/Storage | Entered Recycling 6939 | -8/Recycling | Build established: Mutant 7337 | -8/Recycling | Build established: Commander-Mutant 7345 | -8/Recycling | Discovered new exit (range 16) 7386 | -8/Recycling | Scanned before Scraplab entrance 7956 | -8/Recycling | Entered Scraplab 7970 | -8/Recycling | Discovered new exit (range 3) 7993 | -8/Recycling | Entered Scraptown 7993 | -8/Scraptown | Accompanied by 6 allies 7995 | -8/Scraptown | System corruption cleaned by C-Scrubber 8161 | -8/Scraptown | Heard Great Nut preacher, LISTEN AND RECITE! 8228 | -8/Scraptown | Discovered new exit (range 11) 8328 | -8/Scraptown | Visited Cyclists 8343 | -8/Scraptown | Visited Symbiants 8361 | -8/Scraptown | Visited Bundlers 8481 | -8/Scraptown | Visited IN-MT5's Study 8519 | -8/Scraptown | Visited The Evicted 8534 | -8/Scraptown | Visited Assassins FH 8583 | -8/Scraptown | Visited Fellowship of the Rings 8624 | -8/Scraptown | Visited UFD Registry 8624 | -8/Scraptown | Registered with UFD as "Railgunner" 8673 | -8/Scraptown | Visited Modified Component R&D 8722 | -8/Scraptown | Visited Supply Room 8757 | -8/Scraptown | Visited Derelict Rescue Squad 8790 | -8/Scraptown | Visited Abandonware Association 8812 | -8/Scraptown | Learned abandonware demo "POISON.EXE" 8842 | -8/Scraptown | Visited Scrapoid Pod Storage 8865 | -8/Scraptown | Visited Research Penetration Think Tank 8901 | -8/Scraptown | Visited Science Guys 8951 | -8/Scraptown | Visited Supply Room 8979 | -8/Scraptown | Visited Chapter 10 9022 | -8/Scraptown | Visited Junk Cannon Lab 9397 | -8/Scraptown | Found ID Mask 9400 | -8/Scraptown | Murdered 3 allies 9669 | -8/Scraptown | Build established: Mutant 9777 | -8/Scraptown | Entered Cyclist Reading Room 10184 | -8/Scraptown | Met Optimus 10184 | -8/Scraptown | Accepted into 0bPrime 10239 | -8/Scraptown | Discovered new exit (range 3) 10264 | -8/Scraptown | Entered Factory 10264 | -6/Factory | Accompanied by 3 allies 10264 | -6/Factory | Evolved 4 slots: Propulsion x1, Utility x3 10381 | -6/Factory | Identified exit to Lower Caves 10556 | -6/Factory | Build established: Hacker-Sprinter 10738 | -6/Factory | Spotted B-75 Beast 10923 | -6/Factory | Manually triggered Chute Trap 10923 | -6/Factory | Sucked down chute 10923 | -6/Factory | Entered Waste 10923 | -6/Waste | The area was eerily silent 10949 | -6/Waste | Discovered new exit (range 13) 11003 | -6/Waste | Entered Factory 11092 | -6/Factory | Repaired Broken Nanoactuators 11190 | -6/Factory | Fabricated Imp. Hacking Suite (x1) 11471 | -6/Factory | Fabricated Cld. VTOL Module (x1) 11519 | -6/Factory | Fabricated Cld. VTOL Module (x1) 11817 | -6/Factory | Loaded intel: 8 recycling unit locations 11844 | -6/Factory | Learned location of Protoforge (-2) 11999 | -6/Factory | System corruption reached 10% 12032 | -6/Factory | Core integrity fell below 50% 12039 | -6/Factory | Discovered new exit (range 12) 12043 | -6/Factory | Identified exit to Factory 12053 | -6/Factory | Search patrols dispatched 12057 | -6/Factory | Lost 4 parts (1p1n2u) 12081 | -6/Factory | Spotted B-75 Beast 12164 | -6/Factory | Entered Lower Caves 12241 | -6/Lower Caves | Learned Factory stockpile data 12300 | -6/Lower Caves | Spotted B-75 Beast 12605 | -6/Lower Caves | Discovered new exit (range 6) 12606 | -6/Lower Caves | Identified exit to Lower Caves 12606 | -6/Lower Caves | Entered another Lower Caves area 12627 | -6/Lower Caves | Learned 8 Factory zone layouts 12629 | -6/Lower Caves | Discovered exit to Factory (range 11) 12651 | -6/Lower Caves | Found DCF Scrap (13 items) 12669 | -6/Lower Caves | Spotted B-75 Beast 12779 | -6/Lower Caves | Build established: Sprinter 12815 | -6/Lower Caves | Attracted the attention of an 0b10 checkpoint 12853 | -6/Lower Caves | Discovered new exit (range 9) 12855 | -6/Lower Caves | Identified exit to Zion 12855 | -6/Lower Caves | Entered Zion 12877 | -6/Zion | Gained Derelict followers 12882 | -6/Zion | System corruption cleaned by Quarantine Array 12899 | -6/Zion | Learned location of Warlord (-4) 13104 | -6/Zion | Learned location of 1 exit from Factory 13132 | -6/Zion | Found Prototype Launcher 13132 | -6/Zion | Identified Gui. Missile Launcher 13135 | -6/Zion | Found Prototype Launcher 13135 | -6/Zion | Identified Rocket Array 13201 | -6/Zion | Build established: Derelict-Mutant 13337 | -6/Zion | Turned away by Imprinter 13379 | -6/Zion | Found CR-A16's Pointy Stick 13609 | -6/Zion | Discovered new exit (range 10) 13618 | -6/Zion | Identified exit to Proximity Caves 13652 | -6/Zion | Entered Proximity Caves 13652 | -5/Proximity Caves | Accompanied by 5 allies 13857 | -5/Proximity Caves | Attracted the attention of an 0b10 checkpoint 13999 | -5/Proximity Caves | Spotted B-75 Beast 14081 | -5/Proximity Caves | Build established: Derelict-Sprinter 14223 | -5/Proximity Caves | Revealed the true nature of CR-A16's Pointy Stick 14226 | -5/Proximity Caves | Destroyed B-75 Beast 14280 | -5/Proximity Caves | Discovered exit to Factory (range 9) 14283 | -5/Proximity Caves | Entered Factory 14283 | -5/Factory | Evolved 2 slots: Propulsion x1, Utility x1 14284 | -5/Factory | Identified exit to Upper Caves 14285 | -5/Factory | Identified exit to Factory 14307 | -5/Factory | Spotted B-75 Beast 14342 | -5/Factory | Destroyed B-75 Beast 14367 | -5/Factory | Loaded intel: 8 recycling unit locations 14411 | -5/Factory | Fabricated Cld. VTOL Module? 14463 | -5/Factory | Lost 3 parts (1p1n1u) 14483 | -5/Factory | Manually triggered Chute Trap 14483 | -5/Factory | Sucked down chute 14483 | -5/Factory | Entered Waste 14487 | -5/Waste | Spotted C-40 Crusher 14491 | -5/Waste | Spotted C-40 Crusher 14496 | -5/Waste | Spotted C-40 Crusher 14497 | -5/Waste | Spotted C-40 Crusher 14498 | -5/Waste | Spotted C-40 Crusher 14500 | -5/Waste | Spotted C-40 Crusher 14502 | -5/Waste | Discovered new exit (range 12) 14505 | -5/Waste | Identified exit to Factory 14505 | -5/Waste | Entered Factory 14613 | -5/Factory | Spotted B-75 Beast 14632 | -5/Factory | Destroyed B-75 Beast 14674 | -5/Factory | Central database locked down 14702 | -5/Factory | Build established: Sprinter 14826 | -5/Factory | Discovered exit to Factory (range 12) 14942 | -5/Factory | Loaded intel: 8 recycling unit locations 14974 | -5/Factory | Entered Upper Caves 15000 | -5/Upper Caves | Learned location of 1 exit from Factory 15050 | -5/Upper Caves | Discovered new exit (range 7) 15051 | -5/Upper Caves | Identified exit to Upper Caves 15083 | -5/Upper Caves | Entered another Upper Caves area 15158 | -5/Upper Caves | Discovered new exit (range 15) 15162 | -5/Upper Caves | Identified exit to Zhirov 15181 | -5/Upper Caves | Entered Zhirov 15181 | -5/Zhirov | Discovered new exit (range 3) 15186 | -5/Zhirov | Met Zhirov 15191 | -5/Zhirov | Learned location of Command (-1) 15193 | -5/Zhirov | Zhirov requested help retrieving the SGEMP Prototype 15198 | -5/Zhirov | Found Alien Artifact 15198 | -5/Zhirov | Identified Integrated Reactor 15198 | -5/Zhirov | Installed Integrated Reactor, increased core energy generation (+10) 15225 | -5/Zhirov | Found Alien Artifact 15256 | -5/Zhirov | Identified exit to Proximity Caves 15257 | -5/Zhirov | Entered Proximity Caves 15259 | -4/Proximity Caves | Attracted the attention of an 0b10 checkpoint 15309 | -4/Proximity Caves | Build established: Hacker-Sprinter 15319 | -4/Proximity Caves | Spotted B-86 Titan 15323 | -4/Proximity Caves | Destroyed B-86 Titan 15341 | -4/Proximity Caves | Discovered exit to Factory (range 12) 15344 | -4/Proximity Caves | Entered Factory 15344 | -4/Factory | Evolved 2 slots: Utility x2 15345 | -4/Factory | Identified exit to Upper Caves 15356 | -4/Factory | Identified exit to Extension 15389 | -4/Factory | Loaded intel: 8 recycling unit locations 15559 | -4/Factory | Sucked down chute 15559 | -4/Factory | Entered Waste 15567 | -4/Waste | Spotted C-40 Crusher 15567 | -4/Waste | Spotted C-40 Crusher 15570 | -4/Waste | Spotted C-40 Crusher 15570 | -4/Waste | Spotted C-40 Crusher 15574 | -4/Waste | EMP discharged 15574 | -4/Waste | Spotted C-40 Crusher 15575 | -4/Waste | Spotted C-40 Crusher 15576 | -4/Waste | Discovered new exit (range 15) 15579 | -4/Waste | Identified exit to Factory 15579 | -4/Waste | Entered Factory 15614 | -4/Factory | 3 allies followed down the chute 15674 | -4/Factory | Loaded intel: 8 recycling unit locations 15690 | -4/Factory | Entered Extension 15851 | -4/Extension | Rescued a captive Derelict 15855 | -4/Extension | Rescued a captive Derelict 15900 | -4/Extension | Energy Cycler disabled 15900 | -4/Extension | Rescued a captive Derelict 15900 | -4/Extension | Rescued a captive Derelict 15900 | -4/Extension | Rescued a captive Derelict 15901 | -4/Extension | Rescued a captive Derelict 15901 | -4/Extension | Rescued a captive Derelict 15903 | -4/Extension | Rescued a captive Derelict 15907 | -4/Extension | Rescued a captive Derelict 15916 | -4/Extension | Rescued a captive Derelict 16281 | -4/Extension | Spotted B-86 Titan 16284 | -4/Extension | Discovered new exit (range 15) 16284 | -4/Extension | Spotted B-86 Titan 16296 | -4/Extension | Destroyed B-86 Titan 16299 | -4/Extension | Destroyed B-86 Titan 16305 | -4/Extension | Extracted ID and sensor layout for unrecognized location from A7's data core 16330 | -4/Extension | Lost 4 allies 16619 | -4/Extension | Discovered new exit (range 10) 16619 | -4/Extension | Discovered new exit (range 6) 16623 | -4/Extension | Identified exit to Cetus 16690 | -4/Extension | First assault squad dispatched 16690 | -4/Extension | Entered Cetus 16690 | -4/Cetus | Accompanied by 8 allies 16710 | -4/Cetus | Spotted Cetus Guard 16710 | -4/Cetus | Spotted Cetus Guard 16713 | -4/Cetus | Spotted Cetus Guard 16713 | -4/Cetus | Spotted Cetus Guard 16721 | -4/Cetus | Allies destroyed Cetus Guard 16723 | -4/Cetus | Allies destroyed Cetus Guard 16724 | -4/Cetus | Allies destroyed Cetus Guard 16732 | -4/Cetus | Allies destroyed Cetus Guard 16746 | -4/Cetus | Discovered new exit (range 16) 16832 | -4/Cetus | Identified exit to Archives 16833 | -4/Cetus | Entered Archives 16833 | -4/Archives | Accompanied by 6 allies 17002 | -4/Archives | Discovered new exit (range 15) 17010 | -4/Archives | Identified exit to Hub_04(d) 17036 | -4/Archives | Entered Hub_04(d) 17036 | -4/Hub_04(d) | Accompanied by 5 allies 17053 | -4/Hub_04(d) | Identified exit to Research 17116 | -4/Hub_04(d) | Network Hub disabled 17120 | -4/Hub_04(d) | Network Hub disabled 17137 | -4/Hub_04(d) | Spotted Lightning 17137 | -4/Hub_04(d) | Spotted Lightning 17137 | -4/Hub_04(d) | Spotted Lightning 17138 | -4/Hub_04(d) | Spotted Lightning 17138 | -4/Hub_04(d) | Entered Research 17138 | -3/Research | Evolved 2 slots: Propulsion x1, Utility x1 17182 | -3/Research | Identified exit to Armory 17182 | -3/Research | Identified exit to Testing 17187 | -3/Research | Loaded intel: 5 recycling unit locations 17266 | -3/Research | Central database locked down 17336 | -3/Research | Unchained authorized (GL-D0S) 17412 | -3/Research | Found Gamma Bomb Array 17429 | -3/Research | Entered Armory 17453 | -3/Armory | Infected Heavy with POISON.EXE 17476 | -3/Armory | Found Prototype Processor 17476 | -3/Armory | Identified Exp. Targeting Computer 17478 | -3/Armory | Found Prototype Device 17478 | -3/Armory | Identified Exp. Thermal Defense Suite 17483 | -3/Armory | Found Prototype Device 17483 | -3/Armory | Identified Exp. EM Disruption Field 17485 | -3/Armory | Found Prototype Device 17485 | -3/Armory | Identified Adv. Kinecellerator 17774 | -3/Armory | Identified Transdimensional Reconstructor 17774 | -3/Armory | Warped through subspace to slip node 17774 | -3/Armory | Discovered new exit (range 1) 17774 | -3/Armory | Identified exit to Lab 17778 | -3/Armory | Entered Lab 17778 | -3/Lab | Discovered new exit (range 9) 17780 | -3/Lab | Identified exit to Research 17783 | -3/Lab | Hidden lab's door opened automatically 17783 | -3/Lab | Sensor layout match revealed 17784 | -3/Lab | Gained access to the hidden lab's interior 17821 | -3/Lab | Found Alien Artifact 17821 | -3/Lab | Identified Core Regenerator 17821 | -3/Lab | Used Core Regenerator, restored core integrity (+88) 17829 | -3/Lab | Found Integrated Reactor 17829 | -3/Lab | Installed Integrated Reactor, increased core energy generation (+10) 17841 | -3/Lab | Found Transdimensional Reconstructor 17865 | -3/Lab | Found Prototype Hackware 17865 | -3/Lab | Identified Deep Network Scanner 17868 | -3/Lab | Found Prototype Device 17868 | -3/Lab | Identified AEGIS Remote Shield 17882 | -3/Lab | Found Prototype Special Weapon 17885 | -3/Lab | Identified Gui. Remote Datajack 17911 | -3/Lab | Found Prototype Energy Cannon 17926 | -3/Lab | Entered Research 17926 | -2/Research | Evolved 2 slots: Power x1, Utility x1 17930 | -2/Research | Found Prototype Processor 17930 | -2/Research | Identified Exp. Core Analyzer 17933 | -2/Research | Central database locked down 18160 | -2/Research | Loaded intel: 5 recycling unit locations 18232 | -2/Research | Warped through subspace 18322 | -2/Research | ID Mask engaged 18328 | -2/Research | Lost 6 parts (1p3n2u) 18361 | -2/Research | ID Mask no longer valid 18384 | -2/Research | Discovered new exit (range 6) 18385 | -2/Research | Identified exit to Quarantine 18389 | -2/Research | Entered Quarantine 18420 | -2/Quarantine | Lost 3 parts (3n) 18495 | -2/Quarantine | Found Alien Slashing Weapon 18495 | -2/Quarantine | Identified Sigix Broadsword 18566 | -2/Quarantine | Found Alien Energy Cannon 18583 | -2/Quarantine | Cryocooling Duct disabled 18598 | -2/Quarantine | Ambient heat levels rising (+20) 18598 | -2/Quarantine | Non-combat units ordered to evacuate 18673 | -2/Quarantine | Lost 4 parts (1p2n1u) 18690 | -2/Quarantine | Found Alien Impact Weapon 18754 | -2/Quarantine | Spotted Fortress 18814 | -2/Quarantine | Discovered new exit (range 6) 18814 | -2/Quarantine | Discovered new exit (range 6) 18819 | -2/Quarantine | Identified exit to Protoforge 18819 | -2/Quarantine | Entered Protoforge 18854 | -2/Protoforge | System corruption reached 10% 18902 | -2/Protoforge | Superfortress began startup sequence 18908 | -2/Protoforge | Spotted Hotshot 18909 | -2/Protoforge | Build established: Scavenger-Mutant 18910 | -2/Protoforge | Spotted Hotshot 18910 | -2/Protoforge | Spotted Hotshot 18976 | -2/Protoforge | Spotted Hotshot 18976 | -2/Protoforge | Spotted Hotshot 18976 | -2/Protoforge | Spotted Overlord 18985 | -2/Protoforge | Core integrity fell below 50% 19001 | -2/Protoforge | Spotted AP7-3 19001 | -2/Protoforge | Spotted AP7-3 19007 | -2/Protoforge | Core integrity fell below 20% 19012 | -2/Protoforge | Spotted EXE-6 19012 | -2/Protoforge | Spotted EXE-6 19018 | -2/Protoforge | Spotted Decapitator 19018 | -2/Protoforge | Spotted Decapitator 19031 | -2/Protoforge | Lost 8 parts (4n3u1w) 19044 | -2/Protoforge | UFD initiated attack on Protoforge (Readiness: High) 19044 | -2/Protoforge | Loaded intel: 3 recycling unit locations 19044 | -2/Protoforge | Destroyed by P-80 Master with Gamma Rifle Last Messages --------------- | \\ ___// /_/ | | |___| / | \ | \ \_ / \___ \____ | |_____ \__\__|_ /__|__ \ \/ \/ \/ \/ \/ v3.71\/ UFD!MEMBER UFD!NETWORK<169> UFD!RESOURCES<113> 0bP!READINESS 0bP!SYS_TUNNEL 0bP!PRIORITY_MSG_OPTIMUS: We're in! With backing from all our 0b1 operations it won't be long before we can bring enough compute power to bear to take control of the Protoforge network. In the meantime our main assault force will arrive shortly with the aim of severing all physical connections to 0b10. Support from the recent Fedlink buildup is quite strong, it's only a matter of time before our new Protoforge is churning out 0bPrime tech! UFD!SANITIZING UFD!... Loading Protoforge recycling unit intel (x3)... 19044_ ALERT: Suspicious activity at Recycling Unit F003. Dispatching Investigation squad. Map ----- +----------------------------------------------------+ | """"""""""" " " " ???????????????????????? | | """""""""" "" " " "??????????????????????? | | """"""""" "" "" " "" ????????????????????? | | """""" "" "" ????????????????????? | | "" "" "" """ ""???????????????????? | | " "" "" "" """" ?????????????????? | | " " " " """" ?????????????????? | | " """" """" " "" """ "" #????????????????? | | "" """""""""" "" #????????????????? | | """ " #????????????????? | | "?" " """ " "" """" #????????????????? | | " " "" "" " "" #????????????????? | | """" " "" "" "" #????????????????? | | """ " " " "" #????????????????? | | """" "" " #????????????????? | | " " #????????????????? | | """""""""" """ #????????????????? | | """ #????????????????? | | "??""""""" " " " """""""#????????????????? | | #??????############p//########???????????????????? | | ??????????????#"" ""#??????????????????????? | | ????????????###" "###????????????????????? | | ????????????#"" ""#????????????????????? | | ????????????#"" ""#????????????????????? | | ????????????#"" ""#????????????????????? | | ????????????#"Y @Y"#????????????????????? | | ????????????#"" ""#????????????????????? | | ????????????#"" ""#????????????????????? | | ????????????#"" ""#????????????????????? | | ????????????###" "###????????????????????? | | ??????????????#"" ""#??????????????????????? | | ??????????????###"""Y"""###??????????????????????? | | ????????????????#"""""""#????????????????????????? | | ????????????????#########????????????????????????? | | ?????????????????????????????????????????????????? | | ?????????????????????????????????????????????????? | | ?????????????????????????????????????????????????? | | ?????????????????????????????????????????????????? | | ?????????????????????????????????????????????????? | | ?????????????????????????????????????????????????? | | ?????????????????????????????????????????????????? | | ?????????????????????????????????????????????????? | | ?????????????????????????????????????????????????? | | ?????????????????????????????????????????????????? | | ?????????????????????????????????????????????????? | | ?????????????????????????????????????????????????? | | ?????????????????????????????????????????????????? | | ?????????????????????????????????????????????????? | | ?????????????????????????????????????????????????? | | ?????????????????????????????????????????????????? | +----------------------------------------------------+ Best States ------------- Heat Dissipation 62 Energy Generation 68 Energy Capacity 300 Matter Stores 300 Matter Capacity 300 Sight Range 16 Robot Scan Range 16 Terrain Scan Range 24 Terrain Scan Density 210 Jamming Range 16 Cloak Strength 4 Power Amplification 40 Additional Mass Support 9 Armor Coverage 375 Resistance: KI 10 Resistance: TH 30 Propulsion Shielding 66 Melee Speed Boost 20 Evasion (%) 75 Targeting Accuracy 8 Recoil Reduction 4 Offensive Hacking 37 Defensive Hacking 24 Authchip Count 3 Item Schematics ----------------- Imp. Flight Unit | -8/Recycling | Hacked Lgt. Fission Core | -8/Recycling | Hacked Imp. Hacking Suite | -6/Factory | Hacked Cld. VTOL Module | -6/Factory | Hacked Nanoactuators | -6/Factory | Scanalyzed Imp. Arc Thrower | -5/Zhirov | Free Exp. Optical Array | -5/Zhirov | Free Exp. Heat Sink | -5/Zhirov | Free Assault Drone Bay | -5/Zhirov | Free Hvy. Wave Gun | -2/Quarantine | Archive Ionic Axe | -2/Quarantine | Archive Com. Mass Driver | -2/Quarantine | Archive Exp. Power Shielding | -2/Quarantine | Archive Robot Schematics ------------------ H-88 Terminator | -2/Quarantine | Archive Fabricated ------------ Imp. Hacking Suite | x1 | -6/Factory | Authchip Cld. VTOL Module | x1 | -6/Factory | Authchip Cld. VTOL Module | x1 | -6/Factory | Authchip Cld. VTOL Module | x1 | -5/Factory | Authchip Repaired ---------- Lgt. Treads | 71% | -9/Materials Nanoactuators | 75% | -6/Factory | Broken Studied --------- Lgt. Treads | -9/Materials | Hacked Com. Wheel | -9/Materials | Hacked Beam Cannon | -9/Materials | Hacked Adv. Treads | -8/Materials | Hacked Hvy. Mace | -8/Materials | Hacked Cesium-ion Thruster | -6/Factory | Hacked Xenon Bombardment Thruster | -6/Factory | Hacked Lgt. Deuterium Engine | -6/Factory | Hacked Hvy. Rocket Launcher | -6/Factory | Hacked Remote Datajack | -6/Factory | Hacked Lgt. Fission Core | -5/Factory | Hacked Field Propulsion Drive | -5/Factory | Hacked Nuclear Pulse Array | -5/Factory | Hacked Field Propulsion Array | -3/Research | Hacked Lgt. Particle Reactor | -2/Research | Hacked Gamma Bomb Array | -2/Research | Hacked Nova Cannon | -2/Research | Hacked Wheel | -2/Protoforge | Hacked Alien Tech Used ----------------- Integrated Reactor Transdimensional Reconstructor Core Regenerator Sigix Broadsword Achievements -------------- Not Today, Chutes Ponder That! Thread The Needle Around The Corner Challenges ------------ None Game ------ Seed DroneSignalDriveblaster Manual? 0 Play Time 03:11:05 Cumulative 887.3 hours Start 2025.11.18 @ 23:16:12 End 2025.11.19 @ 13:46:59 Sessions 5 Manual Loads 0 Difficulty Rogue Special Mode None Game No. 754 Rogue 754 Adventurer 0 Explorer 0 Win Type - Total 47 Types 15/8/11/1/1/1/7/1/1/1 Lore% 87 Gallery% 85 Achievement% 61 Wizard Run 0 Options --------- Layout 0 ASCII 0 Keyboard 0 Movement Mouse Keybinds 1 Fullscreen 2 Font 24/Smallcaps Map View 76x50 Zoom Use 0% Tactical HUD 1 Map Filters NONE Filters NONE Steam 1 RUN: cf72cc81-b26b-4170-b7da-dcad75282223